Workbook

Sheet Indice
B1: Sociedad: | C1: BIOTEC DEL PARAGUAY S.A. | D1: <-- Colocar Nombre de la Sociedad
S2: 1 | T2: Enero
S3: 2 | T3: Febrero
S4: 3 | T4: Marzo
S5: 4 | T5: Abril
A6: Fecha Presentación: | B6: 2020-12-31 | C6: <-- Completar Fecha en formato (DD/MM/AAA) | S6: 5 | T6: Mayo
S7: 6 | T7: Junio
S8: 7 | T8: Julio
C9: INDICE | D9: REF. | S9: 8 | T9: Agosto
B10: Informacion General | S10: 9 | T10: Septiembre
C11: Descripción de la naturaleza y del negocio de la Sociedad | D11: Nota 1 | S11: 10 | T11: Octubre
C12: Resumen de las principales políticas contables | D12: Nota 2 | S12: 11 | T12: Noviembre
B13: Balance General | D13: BG | S13: 12 | T13: Diciembre
C14: Efectivo y equivalente de efectivo | D14: Nota 3
C15: Inversiones temporales | D15: Nota 4
C16: Cuentas por cobrar comerciales | D16: Nota 5
C17: Otros créditos | D17: Nota 6
C18: Cuentas por cobrar comerciales | D18: Nota 5
C19: Inventarios | D19: Nota 7
C20: Inversión en asociadas | D20: Nota 8
C21: Propiedades, planta y equipo | D21: Nota 9
C22: Activos disponibles para la venta | D22: Nota 10
C23: Activos intangibles | D23: Nota 11
C24: Goodwill | D24: Nota 12
C25: Cuentas por pagar comerciales | D25: Nota 13
C26: Préstamos a corto plazo | D26: Nota 14
C27: Porción corriente de la deuda a largo plazo | D27: Nota 15
C28: Remuneraciones y cargas sociales a pagar | D28: Nota 16
C29: Impuestos a pagar | D29: Nota 17
C30: Provisiones | D30: Nota 18
C31: Otros pasivos corrientes | D31: Nota 19
C32: Prestamos a largo plazo | D32: Nota 14
C33: Otros pasivos no corrientes | D33: Nota 19
C34: Capital integrado | D34: Nota 20
C35: Reserva de revalúo | D35: Nota 21
C36: Reserva legal | D36: Nota 21
C37: Reservas estatutarias | D37: Nota 21
C38: Reservas facultativas | D38: Nota 21
C39: Diferencia transitoria por conversión | D39: Nota 22
C40: Resultados acumulados | D40: Nota 23
C41: Interés minoritario | D41: Nota 24
B42: Estado de Resultados | D42: ER
C43: Ventas | D43: Nota 25
C44: Costo de ventas | D44: Nota 26
C45: Gastos de ventas | D45: Nota 27
C46: Gastos administrativos | D46: Nota 27
C47: Otros ingresos y gastos operativos | D47: Nota 28
C48: Ingresos financieros - neto | D48: Nota 29
C49: Gastos financieros - neto | D49: Nota 29
C50: Resultado de inversiones en asociadas | D50: Nota 30
C51: Resultado participación minoritaria | D51: Nota 31
C52: Impuesto a la renta | D52: Nota 32
C53: Resultado extraordinario neto de impuesto a la renta | D53: Nota 33
C54: Resultado sobre actividades discontinuadas neto de impuesto a la renta | D54: Nota 34
C55: Utilidad/(Pérdida) neta del año | D55: Nota 35
C56: Utilidad neta por acción ordinaria | D56: Nota 35
B57: Estado de Evolución del Patrimonio Neto | D57: EVPN
B58: Estado de Flujos de Efectivo | D58: EFE
B59: Otras Notas de los Estados Financieros
C60: Activos gravados | D60: Nota 36
C61: Contingencias y compromisos | D61: Nota 37
C62: Impuesto diferido | D62: Nota 38
C63: Hechos posteriores | D63: Nota 39
C64: Saldos y transacciones con partes relacionadas | D64: Nota 40

Sheet BG
D1: =Indice!C1 -> BIOTEC DEL PARAGUAY S.A. | E1: Indice
A7: BALANCE GENERAL
A8: =IFERROR(IF(Indice!B6="","Al dia... de mes… de año 2XX2…","Al "&DAY(Indice!B6)&" de "&VLOOKUP(MONTH(Indice!B6),Indice!S:T,2,0)&" de "&YEAR(Indice!B6)),"Al dia... de mes… de año 2XX2…") -> Al 31 de Diciembre de 2020
A9: (En miles de guaraníes)
E11: Nota | F11: 2020 | G11: 2019
B12: ACTIVOS
B13: Activos Corrientes
C14: Efectivo y equivalente de efectivo | E14: 3 | F14: ='Nota 3'!C20 -> 15890096461 | G14: ='Nota 3'!D20 -> 2007017468
C15: Inversiones temporales | E15: 4 | F15: ='Nota 4'!B18 -> 410072422 | G15: ='Nota 4'!C18 -> 0
C16: Cuentas por cobrar comerciales | E16: 5 | F16: ='Nota 5'!C27 -> 28393497723 | G16: ='Nota 5'!D27 -> 35177032529
C17: Otros créditos | E17: 6 | F17: ='Nota 6'!B18 -> 13272546188 | G17: ='Nota 6'!C18 -> 2413620376 | I17: h
C18: Inventarios | E18: 7 | F18: ='Nota 7'!B15 -> 35727573775 | G18: ='Nota 7'!C15 -> 16866341197
C19: Total activos corrientes | F19: =SUM(F14:F18) -> 93693786569 | G19: =SUM(G14:G18) -> 56464011570
B20: Activos no Corrientes
C21: Otros créditos | E21: 6 | F21: ='Nota 6'!F16 -> 47298184 | G21: ='Nota 6'!G16 -> 14632728
C22: Cuentas por cobrar comerciales | E22: 5 | F22: =+'Nota 5'!C54 -> 0 | G22: ='Nota 5'!D54 -> 0
C23: Inversión en asociadas | E23: 8 | F23: ='Nota 8'!B8 -> 0 | G23: ='Nota 8'!C8 -> 0
C24: Propiedades, planta y equipo/Bienes de uso, neto | E24: 9 | F24: ='Nota 9'!L20 -> 2.068193062e+10 | G24: ='Nota 9'!M20 -> 1.715905544e+10
C25: Activos disponibles para la venta | E25: 10 | F25: ='Nota 10'!B19 -> 0 | G25: ='Nota 10'!C19 -> 0
C26: Activos intangibles | E26: 11 | F26: ='Nota 11'!B10 -> 112170766 | G26: ='Nota 11'!C10 -> 134600647
C27: Goodwill | E27: 12 | F27: ='Nota 12'!B9 -> 0 | G27: ='Nota 12'!C9 -> 0
C28: Total activos no corrientes | F28: =SUM(F21:F27) -> 2.084139957e+10 | G28: =SUM(G21:G27) -> 1.730828882e+10
B29: Total Activos | F29: =+F19+F28 -> 1.145351861e+11 | G29: =+G19+G28 -> 7.377230039e+10
B30: PASIVOS Y PATRIMONIO NETO
B31: Pasivos corrientes | F31: -1
C32: Cuentas por pagar comerciales | E32: 13 | F32: ='Nota 13'!D14 -> 13062407023 | G32: ='Nota 13'!E14 -> 5429917067
C33: Préstamos a corto plazo | E33: 14 | F33: ='Nota 14'!E44 -> 24472717675 | G33: ='Nota 14'!K44 -> 18113024814
C34: Porción corriente de la deuda a largo plazo | E34: 15 | F34: ='Nota 15'!B15 -> 0 | G34: ='Nota 15'!C15 -> 0
C35: Remuneraciones y cargas sociales a pagar | E35: 16 | F35: ='Nota 16'!B12 -> 115928460 | G35: ='Nota 16'!C12 -> 83243306
C36: Impuestos a pagar | E36: 17 | F36: ='Nota 17'!B13 -> 179164 | G36: ='Nota 17'!C13 -> 428310443
C37: Provisiones | E37: 18 | F37: ='Nota 18'!B13 -> 13962488447 | G37: =+'Nota 18'!C13 -> 0
C38: Otros pasivos corrientes | E38: 19 | F38: ='Nota 19'!B18 -> 2120352788 | G38: ='Nota 19'!C18 -> 637466333
C39: Total Pasivos Corrientes | F39: =+F32+F33+F34+F35+F36+F37+F38 -> 53734073557 | G39: =+G32+G33+G34+G35+G36+G37+G38 -> 24691961963
B40: Pasivos no corrientes
C41: Préstamos a largo plazo | E41: 14 | F41: ='Nota 14'!E78 -> 30632091097 | G41: ='Nota 14'!K78 -> 15043923289
C42: Otros pasivos no corrientes | E42: 19 | F42: =+'Nota 19'!F18 -> 0 | G42: =+'Nota 19'!G18 -> 0
C43: Total pasivos no corrientes | F43: =SUM(F41:F42) -> 30632091097 | G43: =SUM(G41:G42) -> 15043923289
B45: Total Pasivos | F45: =+F39+F43 -> 84366164654 | G45: =+G39+G43 -> 39735885252
B46: Patrimonio Neto
C47: Capital integrado | E47: 20 | F47: ='Nota 20'!B11 -> 12000000000 | G47: ='Nota 20'!C11 -> 10000000000
C48: Reserva de revalúo | E48: 21 | F48: =' Nota 21'!B8 -> 2195468553 | G48: =' Nota 21'!C8 -> 770442553
C49: Reserva legal | E49: 21 | F49: =' Nota 21'!B19 -> 1618994215 | G49: =' Nota 21'!C19 -> 993626716
C50: Reservas estatutarias | E50: 21 | F50: =' Nota 21'!B24 -> 0 | G50: =' Nota 21'!C24 -> 0
C51: Reservas facultatitvas | E51: 21 | F51: =' Nota 21'!B28 -> 0 | G51: =' Nota 21'!C28 -> 0
C52: Diferencia transitoria por conversión | E52: 22 | F52: =+'Nota 22'!B9 -> 0 | G52: =+'Nota 22'!C9 -> 0
C53: Resultados acumulados | E53: 23 | F53: ='Nota 23'!B10 -> 14354558716 | G53: ='Nota 23'!C10 -> 22272345863
C54: Subtotal | F54: =SUM(F47:F53) -> 30169021484 | G54: =SUM(G47:G53) -> 34036415132
C55: Interés minoritario | E55: 24 | F55: =+'Nota 24'!B9 -> 0 | G55: =+'Nota 24'!C9 -> 0
B56: Total Patrimonio Neto | F56: =F54 -> 30169021484 | G56: =G54 -> 34036415132
B57: Total Pasivos y Patrimonio Neto | F57: =+F45+F56 -> 114535186138 | G57: =+G45+G56 -> 73772300384
B59: Las notas que se acompañan forman parte integrante de estos estados.
B64: Lic. Cynthia P. Lezcano Lic. Fátima Codas Gonzalo Samaniego Zubizarreta Lic. Arturo D. Toledo
B65: Contador Síndico Títular Presidente Audigroup - Soc. Simple

Sheet ER
A1: =Indice!C1 -> BIOTEC DEL PARAGUAY S.A. | B1: Indice | D1: =ER!A4 -> 
A7: ESTADO DE RESULTADOS
A8: =IFERROR(IF(Indice!B6="","Al dia... de mes… de año 2XX2…","Al "&DAY(Indice!B6)&" de "&VLOOKUP(MONTH(Indice!B6),Indice!S:T,2,0)&" de "&YEAR(Indice!B6)),"Al dia... de mes… de año 2XX2…") -> Al 31 de Diciembre de 2020
A9: Comparativo con igual período del año anterior
A10: (En miles de guaraníes)
B12: Nota | C12: =IFERROR(IF(Indice!B6="","2XX2",YEAR(Indice!B6)),"2XX2") -> 2020 | D12: 2019
A13: Ventas | B13: 25 | C13: ='Nota 25'!B26 -> 80303617588 | D13: ='Nota 25'!C26 -> 53963579095
A14: Costo de ventas | B14: 26 | C14: =-'Nota 26'!B22 -> -36552299652 | D14: =-'Nota 26'!C22 -> -18697199956
A15: Utilidad bruta | C15: =+C13+C14 -> 43751317936 | D15: =+D13+D14 -> 35266379139
A16: Gastos de ventas | B16: 27 | C16: =-'Nota 27'!B42 -> -13075404774 | D16: =-'Nota 27'!E42 -> -10154847552
A17: Gastos administrativos | B17: 27 | C17: =-'Nota 27'!C42 -> -8192242097 | D17: =-'Nota 27'!F42 -> -7052038403
A18: Otros ingresos y gastos operativos | B18: 28 | C18: =-(+'Nota 28'!F17-'Nota 28'!B17) -> -626966039 | D18: =-(+'Nota 28'!G17-'Nota 28'!C17) -> -1010678445
A19: Resultado operativo | C19: =SUM(C16:C18) -> -21894612910 | D19: =SUM(D16:D18) -> -18217564400
A20: Ingresos financieros - neto | B20: 29 | C20: =+'Nota 29'!B18 -> 0 | D20: =+'Nota 29'!C18 -> 0
A21: Gastos financieros - neto | B21: 29 | C21: =-'Nota 29'!F18 -> -5724375495 | D21: =-'Nota 29'!G18 -> -3054940928
A22: Subtotal | C22: =SUM(C20:C21) -> -5724375495 | D22: =SUM(D20:D21) -> -3054940928
A23: Resultado de inversiones en asociadas | B23: 30 | C23: =+'Nota 30'!B10 -> 0 | D23: =+'Nota 30'!C10 -> 0
A24: Resultados ordinarios antes de impuesto a la renta y participación minoritaria | C24: =+C15+C19+C21 -> 16132329531 | D24: =+D15+D19+D21 -> 13993873811
A25: Resultado participación minoritaria | B25: 31 | C25: =+'Nota 31'!B10 -> 0 | D25: =+'Nota 31'!C10 -> 0
A26: Resultado ordinario antes del impuesto a la renta
A27: Impuesto a la renta | B27: 32 | C27: =-'Nota 32'!B14 -> -1777770815 | D27: =-'Nota 32'!C14 -> -1485404962
A28: Resultado neto de actividades ordinarias | C28: =+C24+C27 -> 14354558716 | D28: =+D24+D27 -> 12508468849
A29: Resultado extraordinario neto de impuesto a la renta | B29: 33 | C29: =+'Nota 33'!B10 -> 0 | D29: =+'Nota 33'!C10 -> 0
A30: Resultado sobre actividades discontinuadas neto de impuesto a la renta | B30: 34 | C30: =+'Nota 34'!B12 -> 0 | D30: =+'Nota 34'!C12 -> 0
A31: Utilidad/(Pérdida) neta del año | C31: =C28+C29+C30 -> 14354558716 | D31: =D28+D29+D30 -> 12508468849
A32: Utilidad neta por acción ordinaria | B32: 35 | C32: ='Nota 35'!B10 -> 1196213.226 | D32: ='Nota 35'!C10 -> 1250846.885
A35: Las notas que se acompañan forman parte integrante de estos estados.
A41: Lic. Cynthia P. Lezcano Lic. Fátima Codas Gonzalo Samaniego Zubizarreta Lic. Arturo D. Toledo
A42: Contador Síndico Títular Presidente Audigroup - Soc. Simple

Sheet EVPN
A1: =Indice!C1 -> BIOTEC DEL PARAGUAY S.A. | H1: Indice
F4: ESTADO DE EVOLUCIÓN DEL PATRIMONIO NETO
H5: =IFERROR(IF(Indice!B6="","Al dia... de mes… de año 2XX2…","Al "&DAY(Indice!B6)&" de "&VLOOKUP(MONTH(Indice!B6),Indice!S:T,2,0)&" de "&YEAR(Indice!B6)),"Al dia... de mes… de año 2XX2…") -> Al 31 de Diciembre de 2020
H6: Comparativo con igual periodo del año anterior
A7: (En miles de guaraníes)
C10: Aporte de los propietarios | L10: Ganancias reservadas
C11: Capital suscripto e integrado | D11: Aporte para | F11: Primas de emisión | H11: Reserva de revalúo | J11: Reserva de revalúo técnico | L11: Reserva legal | N11: Reserva facultativa | P11: Resultados acumulados | R11: Interes Minoritario | T11: Total
D12: aumento de capital | P12: Total
A14: =IFERROR(IF([1]Indice!B6="","Saldo al .. de de 20X0 ","Saldo al "&DAY([1]Indice!B6)&" de "&VLOOKUP(MONTH([1]Indice!B6),[1]Indice!S:T,2,0)&" de "&YEAR([1]Indice!B6-731)),"Saldo al .. de de 20X0 ") -> Saldo al 31 de Diciembre de 2018 | C14: 7000000000 | H14: 3273018949 | L14: 708429580 | N14: 0 | P14: =10308250306+5703942716 -> 16012193022 | T14: =+SUM(C14:S14) -> 26993641551
A15: Cambio en política contable (Nota….)
A16: Saldo reestructurado | C16: =+C14+C15 -> 7000000000 | F16: =+F14+F15 -> 0 | H16: =+H14+H15 -> 3273018949 | J16: =+J14+J15 -> 0 | L16: =+L14+L15 -> 708429580 | N16: =+N14+N15 -> 0 | P16: =+P14+P15 -> 16012193022 | R16: =+R14+R15 -> 0 | T16: =+SUM(C16:S16) -> 26993641551
A18: Integración del capital social
A20: Aporte para Aumento de Capital | C20: 3000000000 | H20: 0 | T20: =+SUM(C20:S20) -> 3000000000
A21: Reserva Legal | H21: 0 | L21: 285197136 | P21: -285197136 | T21: 0
A22: Reserva Fcultativa | T22: 0
A23: Revalúo de activos fijos | H23: -2502576396 | T23: =+SUM(C23:S23) -> -2502576396
A24: Dividendos a Pagar | H24: 0 | P24: -5962000000 | T24: -5962000000
A25: Revalúo técnico | T25: 0
A26: Resultado del año | P26: 12507349978 | T26: 12507349978
A28: =IFERROR(IF([1]Indice!B6="","Saldo al .. de de 20X1 ","Saldo al "&DAY([1]Indice!B6)&" de "&VLOOKUP(MONTH([1]Indice!B6),[1]Indice!S:T,2,0)&" de "&YEAR([1]Indice!B6-366)),"Saldo al .. de de 20X1 ") -> Saldo al 31 de Diciembre de 2019 | C28: =+C16+SUM(C20:C26) -> 10000000000 | D28: =SUM(D14:D26) -> 0 | F28: =+F16+SUM(F20:F26) -> 0 | G28: =SUM(G14:G27) -> 0 | H28: =+H16+SUM(H20:H26) -> 770442553 | J28: =+J16+SUM(J20:J26) -> 0 | L28: =+L16+SUM(L20:L26) -> 993626716 | N28: =+N16+SUM(N20:N26) -> 0 | P28: =+P16+SUM(P20:P26) -> 22272345864 | R28: =+R16+SUM(R20:R26) -> 0 | T28: =+T16+SUM(T20:T26) -> 34036415133
A29: Distribución de dividendos s/Acta de Asamblea General Ordinaria N°… de fecha………
A30: Revalúo de activos fijos | T30: =+SUM(C30:S30) -> 0
A31: Desafectación de la reserva de revalúo técnico
A32: Aporte para Aumento de Capital 2019 | C32: 2000000000 | H32: 0 | P32: -2000000000 | T32: =+SUM(C32:S32) -> 0
A33: Reserva Legal | H33: 0 | L33: 625367499 | P33: -625367499 | T33: =+SUM(C33:S33) -> 0
A34: Reserva Fcultativa | P34: 0 | T34: 0
A35: Revalúo de activos fijos | H35: 0 | P35: 0 | T35: 0
A36: Dividendos a Pagar | H36: 0 | P36: =+-(P28+P32+P33) -> -19646978365 | T36: -19646978365
A37: Revalúo técnico | J37: 1425026000 | P37: 0 | T37: =+SUM(C37:S37) -> 1425026000
A38: Resultado del año | P38: 14354558716 | T38: 14354558716
A40: =IFERROR(IF([1]Indice!B6="","Saldo al .. de de 20X2 ","Saldo al "&DAY([1]Indice!B6)&" de "&VLOOKUP(MONTH([1]Indice!B6),[1]Indice!S:T,2,0)&" de "&YEAR([1]Indice!B6)),"Saldo al .. de de 20X2 ") -> Saldo al 31 de Diciembre de 2020 | C40: =SUM(C32:C39)+C28 -> 12000000000 | D40: 0 | F40: =SUM(F32:F39)+F28 -> 0 | G40: 0 | H40: =SUM(H32:H39)+H28 -> 770442553 | J40: =SUM(J32:J39)+J28 -> 1425026000 | L40: =SUM(L32:L39)+L28 -> 1618994215 | N40: =SUM(N32:N39)+N28 -> 0 | P40: =SUM(P32:P39)+P28 -> 14354558716 | R40: =SUM(R32:R39)+R28 -> 0 | T40: =SUM(T32:T39)+T28 -> 30169021484
T41: =+T40-BG!F56 -> 0
A42: Las notas que se acompañan forman parte integrante de estos estados.

Sheet EFE
A1: =Indice!C1 -> BIOTEC DEL PARAGUAY S.A.
A5: ESTADO DE FLUJOS DE EFECTIVO (Método directo)
A6: =IFERROR(IF(Indice!B6="","Al dia... de mes… de año 2XX2…","Al "&DAY(Indice!B6)&" de "&VLOOKUP(MONTH(Indice!B6),Indice!S:T,2,0)&" de "&YEAR(Indice!B6)),"Al dia... de mes… de año 2XX2…") -> Al 31 de Diciembre de 2020
A7: Comparativo con igual periodo del año anterior
A8: (En miles de guaraníes)
B11: =IFERROR(IF(Indice!B6="","2XX2",YEAR(Indice!B6)),"2XX2") -> 2020 | C11: 2019
A13: FLUJO DE EFECTIVO DE ACTIVIDADES OPERATIVAS
A14: Cobranzas efectuadas a clientes | B14: 84875360170 | C14: 37986189170
A15: Pagos efectuados a proveedores y empleados | B15: -61508153754 | C15: -26829682156
A16: Efectivo generado por las operaciones | B16: 293209015 | C16: 344084276
A17: Intereses pagados | B17: -2342987610 | C17: -2038010039
A18: Otros ingresos y (egresos) - neto | B18: -13990728860 | C18: -9039218432
A19: Pagos de impuesto a la renta | B19: -1777770815 | C19: -1233933237
A20: Flujo neto de efectivo de actividades operativas | B20: =SUM(B14:B19) -> 5548928146 | C20: =SUM(C14:C19) -> -810570418
A22: FLUJO DE EFECTIVO DE ACTIVIDADES DE INVERSIÓN
A23: Adquisición de bienes de uso | B23: -7076894833 | C23: -3188632386
A24: Adquisición de bienes Curtiembre - fideicomitida | B24: 0
A25: Ventas de activos fijos | B25: 0 | C25: 0
A26: Ventas de bienes de uso | B26: 0 | C26: 0
A27: Intereses cobrados sobre inversiones | B27: 0 | C27: 0
A28: Aquisición de inversiones | B28: -410072422 | C28: 0
A29: Flujo neto de efectivo de actividades de inversión | B29: =SUM(B23:B28) -> -7486967255 | C29: =SUM(C23:C28) -> -3188632386
A31: FLUJO DE EFECTIVO DE ACTIVIDADES DE FINANCIACIÓN
A32: (Disminución) Incremento de préstamos | B32: 20126195389 | C32: 6173503237
A33: Aportes de capital recibidos | B33: 0
A34: Dividendos pagados | B34: -4305077287 | C34: -5962000000
A35: Flujo neto de efectivo de actividades de financiamiento | B35: =B32+B33+B34 -> 15821118102 | C35: =C32+C33+C34 -> 211503237
A37: (Disminución) Incremento neto de efectivo | B37: =+B20+B29+B35 -> 13883078993 | C37: =+C20+C29+C35 -> -3787699567
A38: Efecto estimado de la diferencia de cambio sobre el saldo de efectivo | B38: 0 | C38: =+C21+C30+C36 -> 0
A39: Efectivo al principio del año | B39: 2007017468 | C39: 5794717035
A41: Efectivo al final del periodo | B41: =+SUM(B37:B39) -> 15890096461 | C41: =+SUM(C37:C39) -> 2007017468
B42: 0
A43: Las notas que se acompañan forman parte integrante de estos estados. | C43: =+B39-C41 -> 0

Sheet 2019 (hidden)
B1: BIOTEC DEL PARAGUAY S.A.
B2: Balance General Analítico
A3: Periodo: | B3: 01/01/19-31/12/19
A4: Nivel Máximo | B4: 99-INCLUYE SOLO CUENTAS CON SALDO
A5: Código de la Cuenta | B5: Nombre de la Cuenta | C5: Saldo a la Fecha
A6: 1 | B6: ACTIVO | C6: 81747787145
A7: 10 | B7: ACTIVO CORRIENTE | C7: 58957614760
A8: 101 | B8: DISPONIBILIDADES | C8: 2007017468
A9: 10101 | B9: FONDO FIJO - DIRECTORIO | C9: 5000000
A10: 10102 | B10: RECAUDACIONES A DEPOSITAR | C10: 20131321
A11: 10103 | B11: FONDO FIJO CASA CENTRAL | C11: 1026854
A12: 10104 | B12: FONDO FIJO - C.D.E. | C12: 265919
A13: 10106 | B13: BANCO ATLAS C/C 313005428 | C13: 240418656
A14: 10107 | B14: BANCO BASA S.A. C/C 1.0002045/4 | C14: 8449972
A15: 10108 | B15: BANCO NACIONAL DE FOMENTO C/C | C15: 13043810
A16: 10109 | B16: BANCO FAMILIAR CAJA/AH VISTA 22-00319032 | C16: 7860
A17: 10110 | B17: BANCO FAMILIAR CAJA/AH - 00319045 | C17: 10226380
A18: 10111 | B18: BANCO REGIONAL S.A. C/C 7049046 | C18: 44579122
A19: 10115 | B19: FIC S.A. DE FINANZAS C/AH. 0231000140 | C19: 1433639
A20: 10116 | B20: BANCO CONTINENTAL C/C 44-00735881-06 | C20: 7193387
A21: 10117 | B21: BANCO BBVA C/C. GS 2101024326 | C21: 1439068729
A22: 10118 | B22: BANCO VISION C/C 900094305 | C22: 27129020
A23: 10119 | B23: BANCO BBVA C/C U$S 2101025566 | C23: 3413275
A24: 10121 | B24: BANCO ITAU C/C 083711/0 | C24: 123823770
A25: 10122 | B25: BANCO FAMILIAR C/C 22-1083183 | C25: 5000000
A26: 10125 | B26: BANCO FAMILIAR C/C USD 22 -2373641 | C26: 13525350
A27: 10126 | B27: BANCO GNB PARAGUAY SA C/C 12357422/001 | C27: 19912163
A28: 10128 | B28: BANCO INTERFISA C/C 5-0002596 | C28: 8737871
A29: 10129 | B29: FINANCIERA PARAGUAYO JAPONESA SAECA C/A 176109 | C29: 1091479
A30: 10130 | B30: FINANCIERA RIO S.A.E.C.A C/AH 30468002 | C30: 803774
A31: 10132 | B31: BANCOP C/C CTA 410132454 | C31: 5109589
A32: 10133 | B32: INTERFISA BANCO USD C/C 60001296 | C32: 7625528
A33: 102 | B33: CREDITOS | C33: 35416802548
A34: 10201 | B34: CLIENTES | C34: 35177032529
A35: 102010001 | B35: CLIENTES | C35: 35177900868
A36: 102010002 | B36: CLIENTES - COBRANZAS A IMPUTAR | C36: -868339
A37: 10203 | B37: IVA CREDITO FISCAL 10% | C37: 4362141
A38: 10208 | B38: SALDO A FAVOR POR EXCESO-SET | C38: 4134928
A39: 10212 | B39: DEUDORES VARIOS | C39: 2857926
A40: 10216 | B40: OTROS CREDITOS | C40: 216158525
A41: 10218 | B41: CHEQUES RECHAZADOS | C41: 9946000
A42: 10222 | B42: ANTICIPO A RENDIR - VIATICOS | C42: 2310499
A43: 103 | B43: INVENTARIOS | C43: 16866341197
A44: 10302 | B44: MERCADERIAS GRAVADAS 10% - EQUIPOS | C44: 5392407856
A45: 10303 | B45: MERCADERIAS GRAVADAS 10% - REACTIVOS | C45: 4939953374
A46: 10306 | B46: MERCADERIAS GRAVADAS 10% - REPUESTOS | C46: 2802909866
A47: 10307 | B47: MERCADERIAS GRAVADAS 10% - INSUMOS | C47: 1151005161
A48: 10308 | B48: MERCADERIAS GRAVADAS 10% - MATERIALES | C48: 198811011
A49: 10309 | B49: IMPORTACIONES EN CURSO | C49: 2381253929
A50: 105 | B50: ANTICIPOS | C50: 1992044951
A51: 10501 | B51: ANTICIPO A PROVEEDORES DEL EXTERIOR | C51: 1920351447
A52: 10502 | B52: ANTICIPO DE SUELDOS - PERSONAL | C52: 20458637
A53: 10503 | B53: ANTICIPO A PROVEEDORES LOCALES | C53: 51234867
A54: 106 | B54: GASTOS PAGADOS POR ADELANTADO | C54: 2675408596
A55: 10602 | B55: SEGUROS A DEVENGAR | C55: 76375719
A56: 10603 | B56: GARANTIA DE ALQUILER | C56: 33000000
A57: 10605 | B57: GASTOS PAG. POR ADELANTADO | C57: 72429687
A58: 10606 | B58: INTERESES A DEVENGAR - DEUDAS FINANCIERAS | C58: 989230586
B59: BIOTEC DEL PARAGUAY S.A.
B60: Balance General Analítico
A61: Periodo: | B61: 01/01/19-31/12/19
A62: Nivel Máximo | B62: 99-INCLUYE SOLO CUENTAS CON SALDO
A63: Código de la Cuenta | B63: Nombre de la Cuenta | C63: Saldo a la Fecha
A64: 10609 | B64: INTERESES A DEVENGAR - BONOS | C64: 1504372604
A65: 11 | B65: ACTIVO NO CORRIENTE | C65: 22790172385
A66: 114 | B66: PROPIEDAD, PLANTA Y EQUIPO | C66: 17159055442
A67: 11401 | B67: INMUEBLES | C67: 1822036373
A68: 11402 | B68: RODADOS /TRANSPORTES | C68: 1732135192
A69: 11403 | B69: MUEBLES, ÚTILES Y ENSERES | C69: 591686491
A70: 11404 | B70: EQUIPOS DE LABORATORIO | C70: 26156282612
A71: 11405 | B71: EQUIPOS DE COMUNICACION | C71: 25672744
A72: 11406 | B72: EQUIPOS DE INFORMATICA | C72: 1945298804
A73: 11407 | B73: MEJORAS EN PREDIO AJENO | C73: 481201976
A74: 11408 | B74: SOFTWARE | C74: 528550684
A75: 11409 | B75: EDIFICIOS | C75: 573169416
A76: 11410 | B76: INSTALACIONES | C76: 381278430
A77: 11499 | B77: (-) DEPRECIACIÓN ACUMULADA | C77: -17078257280
A78: 1149901 | B78: (-) DEPRECIACION ACUMULADA RODADOS | C78: -907375363
A79: 1149902 | B79: (-) DEPRECIACION ACUMULADA MUEBLES Y ENSERES | C79: -334282821
A80: 1149903 | B80: (-) DEPRECIACION ACUMULADA EQUIPOS DE LABORATORIOS | C80: -13105570931
A81: 1149904 | B81: (-) DEPRECIACION ACUMULADA EQUIPOS DE COMUNICACION | C81: -8916762
A82: 1149905 | B82: (-) DEPRECIACION ACUMULADA EQUIPOS DE INFORMATICA | C82: -1450378347
A83: 1149906 | B83: (-) DEPRECIACION ACUMULADA MEJORAS EN PREDIO AJENO | C83: -354923794
A84: 1149907 | B84: (-) DEPRECIACION ACUMULADA SOFTWARE | C84: -477436316
A85: 1149908 | B85: (-) DEPRECIACION ACUMULADA EDIFICIOS | C85: -115946029
A86: 1149909 | B86: (-) DEPRECIACION ACUMULADA INSTALACIONES | C86: -323426917
A87: 115 | B87: OTROS ACTIVOS A LARGO PLAZO | C87: 5481883568
A88: 11501 | B88: INTERESES A DEVENGAR - BONOS LP | C88: 5481883568
A89: 116 | B89: CARGOS DIFERIDOS | C89: 14632728
A90: 11603 | B90: GASTOS DE DESARROLLO | C90: 14632728
A91: 117 | B91: ACTIVOS INTANGIBLES | C91: 134600647
A92: 11701 | B92: LICENCIAS, MARCAS Y PATENTES | C92: 464776044
A93: 11799 | B93: (-) AMORTIZACIÓN ACUMULADA | C93: -330175397
A94: 2 | B94: PASIVO | C94: 47711372013
A95: 20 | B95: PASIVO CORRIENTE | C95: 27191055567
A96: 201 | B96: ACREEDORES COMERCIALES | C96: 5429917067
A97: 20101 | B97: PROVEEDORES LOCALES | C97: 824523747
A98: 20102 | B98: TARJETA DE CREDITO FAMILIAR | C98: 2506660
A99: 20104 | B99: PROVEEDORES DEL EXTERIOR | C99: 4602886660
A100: 202 | B100: PROVISIONES | C100: 527273791
A101: 20201 | B101: I.P.S. A PAGAR | C101: 83243306
A102: 20214 | B102: IMPUESTO A LA RENTA A PAGAR | C102: 278989034
A103: 20216 | B103: IVA A PAGAR | C103: 149321409
A104: 20217 | B104: RETENCIONES DE IMPUESTOS A INGRESAR | C104: 15720042
A105: 203 | B105: DEUDAS FINANCIERAS | C105: 19102255403
A106: 20303 | B106: PRESTAMO BANCO BASA S.A. | C106: 7420698629
A107: 20305 | B107: PRESTAMO BANCOP S.A. | C107: 1059178083
A108: 20312 | B108: PRESTAMO BCO. CONTINENTAL GS. | C108: 1880778082
A109: 20313 | B109: PRESTAMO BCO. BBVA | C109: 3092671235
A110: 20314 | B110: PRESTAMO BCO. VISION S.A.E.C.A. GS. | C110: 2173392852
A111: 20318 | B111: PRESTAMOS CAJA MUTUAL DE COOP. DEL PY | C111: 1049972604
A112: 20325 | B112: PRESTAMO BANCO ITAÚ | C112: 1366794055
A113: 20326 | B113: PRESTAMO GNB PARAGUAY SA GS | C113: 1058769863
A114: 204 | B114: PRESTAMOS SOCIALES | C114: 596506751
A115: 20402 | B115: PRESTAMOS DE SOCIOS M/E | C115: 596506751
A116: 205 | B116: INGRESOS DIFERIDOS | C116: 25239540
B117: BIOTEC DEL PARAGUAY S.A.
B118: Balance General Analítico
A119: Periodo: | B119: 01/01/19-31/12/19
A120: Nivel Máximo | B120: 99-INCLUYE SOLO CUENTAS CON SALDO
A121: Código de la Cuenta | B121: Nombre de la Cuenta | C121: Saldo a la Fecha
A122: 20501 | B122: ANTICIPO DE CLIENTES | C122: 25239540
A123: 207 | B123: INVERSIONES | C123: 1509863015
A124: 20703 | B124: INTERESES S/ BONOS A PAGAR | C124: 1509863015
A125: 21 | B125: PASIVO NO CORRIENTE | C125: 20520316446
A126: 212 | B126: INVERSIONES | C126: 20520316446
A127: 21201 | B127: BONOS EMITIDOS A PAGAR - LP | C127: 15000000000
A128: 21202 | B128: INTERESES S/ BONOS A PAGAR - LP | C128: 5520316446
A129: 3 | B129: PATRIMONIO NETO | C129: 34036415132
A130: 301 | B130: CAPITAL | C130: 10000000000
A131: 30101 | B131: CAPITAL INTEGRADO | C131: 10000000000
A132: 302 | B132: RESERVAS | C132: 1764069269
A133: 30201 | B133: RESERVA LEGAL | C133: 993626716
A134: 30202 | B134: RESERVA DE REVALUO FISCAL | C134: 770442553
A135: 303 | B135: RESULTADOS | C135: 22272345863
A136: 30313 | B136: RESULTADO 2017 | C136: 4346250305
A137: 30314 | B137: RESULTADO 2018 | C137: 5418745580
A138: 30399 | B138: RESULTADO DEL EJERCICIO | C138: 12507349978
A139: 4 | B139: INGRESOS | C139: 54954413453
A140: 401 | B140: VENTAS - SECTOR PRIVADO | C140: 13283738573
A141: 40101 | B141: VENTAS GRAVADAS SECTOR. PRIVADO | C141: 11343761940
A142: 40102 | B142: OTRAS VENTAS GRAVADAS | C142: 1588257603
A143: 40103 | B143: VENTAS EXENTAS | C143: 130676763
A144: 40104 | B144: VENTAS POR SERVICIOS - INFOLAB | C144: 28090909
A145: 40105 | B145: VENTAS GRAVADAS - REPARACIÓN Y MANTENIMIENTO | C145: 44612734
A146: 40106 | B146: DESCUENTOS CONCEBIDOS S/ VENTAS (-) | C146: -165217469
A147: 40107 | B147: VENTAS POR SERVICIOS | C147: 374790724
A148: 40108 | B148: VENTAS - ALQUILERES COBRADOS | C148: 63999994
A149: 40109 | B149: DEVOLUCIONES S/NOTAS DE CREDITO - PRIVADO(-) | C149: -125234625
A150: 403 | B150: VENTAS - SECTOR PUBLICO | C150: 40679840522
A151: 4030003 | B151: VENTAS SECTOR PUBLICO - LPN 28/2014 MSP Y BS | C151: 54132539
A152: 4030004 | B152: VENTAS SECTOR PUBLICO - LPN SBE 100/16 | C152: 36221
A153: 4030005 | B153: VENTAS SECTOR PUBLICO - LPN 16/2015 MSP Y BS | C153: 3217724
A154: 4030006 | B154: VENTAS SECTOR PUBLICO - LPN 11/2016 MSP Y BS | C154: 2436873
A155: 4030015 | B155: VENTAS SECTOR PUBLICO - LPN 98/2014 - MSP Y BS | C155: 188218182
A156: 4030016 | B156: VENTAS SECTOR PUBLICO - LPN 34/2016 - MSP Y BS | C156: 584461818
A157: 4030018 | B157: VENTAS SECTOR PUBLICO - LCO 71/2016 - MSP Y BS | C157: 2263636
A158: 4030019 | B158: VENTAS SECTOR PUBLICO - LPN 47/2014 - IPS | C158: 41292001
A159: 4030022 | B159: VENTAS SECTOR PUBLICO - LPN 71/2016 - MSP Y BS | C159: 2114311481
A160: 4030024 | B160: VENTAS SECTOR PUBLICO - LPN 10/2016 - MSP Y BS | C160: 490909
A161: 4030026 | B161: VENTAS SECTOR PUBLICO - LCO 24/2017- MSP Y BS | C161: 59454545
A162: 4030027 | B162: VENTAS SECTOR PUBLICO - LPN SBE 60/2016 IPS | C162: 1872359860
A163: 4030030 | B163: VENTAS SECTOR PUBLICO - LPN 03/2017 IPS | C163: 714665311
A164: 4030031 | B164: VENTAS SECTOR PUBLICO - LPN 24/2017 MSP Y BS | C164: 70909090
A165: 4030038 | B165: VENTAS SECTOR PUBLICO - LPN 41/2017 - YRENDAGUE | C165: 1054593272
A166: 4030040 | B166: VENTAS SECTOR PUBLICO - LPN 44/2017 - MSP Y BS | C166: 3495121500
A167: 4030042 | B167: VENTAS SECTOR PUBLICO - LPN 51/2017 - LAB. CENTRAL | C167: 201681818
A168: 4030043 | B168: VENTAS SECTOR PUBLICO - LPN 49/2017 - MSP Y BS | C168: 29003635673
A169: 4030044 | B169: VENTAS SECTOR PUBLICO - LPN 27/2018 - IPS REG | C169: 2630892777
A170: 4030052 | B170: DEVOLUCIONES S/VENTAS - LPN 28/2014(-) | C170: -46759785
A171: 4030053 | B171: DEVOLUCIONES S/VENTAS - LPN SBE 100/16(-) | C171: -36221
A172: 4030054 | B172: DEVOLUCIONES S/VENTAS - LPN 16/2015(-) | C172: -3217724
A173: 4030055 | B173: DEVOLUCIONES S/VENTAS - LPN 11/2016 MSP Y BS(-) | C173: -2436873
A174: 4030064 | B174: DEVOLUCIONES S/VENTAS - LPN 98/2014 - MSP Y BS(-) | C174: -188218182
B175: BIOTEC DEL PARAGUAY S.A.
B176: Balance General Analítico
A177: Periodo: | B177: 01/01/19-31/12/19
A178: Nivel Máximo | B178: 99-INCLUYE SOLO CUENTAS CON SALDO
A179: Código de la Cuenta | B179: Nombre de la Cuenta | C179: Saldo a la Fecha
A180: 4030065 | B180: DEVOLUCIONES S/VENTAS - LPN 34/2016 - MSP Y BS(-) | C180: -583305454
A181: 4030067 | B181: DEVOLUCIONES S/VENTAS - LCO 71/2016 - MSP Y BS(-) | C181: -4772727
A182: 4030071 | B182: DEVOLUCIONES S/VENTAS - LPN 71/2016 - MSP Y BS(-) | C182: -94392374
A183: 4030073 | B183: DEVOLUCIONES S/VENTAS - LPN 10/2016 - MSP Y BS(-) | C183: -490909
A184: 4030075 | B184: DEVOLUCIONES S/VENTAS - LCO 24/2017- MSP Y BS(-) | C184: -71590910
A185: 4030087 | B185: DEVOLUCIONES S/VENTAS - LPN 41/2017 YRENDAGUE(-) | C185: -21224357
A186: 4030089 | B186: DEVOLUCIONES S/VENTAS - LPN 44/2017 - MSP Y BS(-) | C186: -1356423934
A187: 4030091 | B187: DEVOLUCIONES S/VENTAS - LPN 51/2017 - LAB CEN(-) | C187: -97363636
A188: 4030092 | B188: DEVOLUCIONES S/VENTAS - LPN 49/2017 - MSP Y BS(-) | C188: -4577705584
A189: 4030093 | B189: DEVOLUCIONES S/VENTAS - LPN 27/2018 - IPS REG(-) | C189: -149939671
A190: 4039997 | B190: VENTAS GRAVADAS SECTOR PUBLICO | C190: 6074321609
A191: 4039999 | B191: DEVOLUCIONES S/ NOTAS DE CREDITO - SEC. PUBLICO(-) | C191: -290777976
A192: 404 | B192: INGRESOS EXTRAORDINARIOS | C192: 990834358
A193: 40401 | B193: OTROS INGRESOS | C193: 139624623
A194: 40402 | B194: SOBRANTE EN CAJA | C194: 111121
A195: 40404 | B195: UTILIDAD - DIFERENCIA DE CAMBIO | C195: 681825353
A196: 40405 | B196: INTERESES GANADOS | C196: 393875
A197: 40406 | B197: DESCUENTOS OBTENIDOS | C197: 24183214
A198: 40407 | B198: AJUSTE POR INVENTARIO | C198: 229093
A199: 40408 | B199: VENTA DE ACTIVO FIJO | C199: 144467079
A200: 5 | B200: EGRESOS | C200: 42447063475
... 257 more rows

Sheet Nota1
A1: =Indice!C1 -> BIOTEC DEL PARAGUAY S.A. | I1: BG
A6: NOTAS A LOS ESTADOS FINANCIEROS CORRESPONDIENTES AL PERIODO TERMINADO | H6: =IFERROR(IF(Indice!B6="","Al dia... de mes… de año 2XX2…","Al "&DAY(Indice!B6)&" de "&VLOOKUP(MONTH(Indice!B6),Indice!S:T,2,0)&" de "&YEAR(Indice!B6)),"Al dia... de mes… de año 2XX2…") -> Al 31 de Diciembre de 2020
A7: Presentadas en forma comparativa con el periodo terminado | F7: =IFERROR("Al "&DAY(Indice!B6)&" de "&VLOOKUP(MONTH(Indice!B6),Indice!S:T,2,0)&" de "&YEAR(Indice!B6-365),"Al dia... de mes… de año 2XX1…") -> Al 31 de Diciembre de 2020
A11: NOTA 1 – DESCRIPCIÓN DE LA NATURALEZA Y DEL NEGOCIO DE LA COMPAÑÍA
A12: Antecedentes de la sociedad: naturaleza jurídica, antecedentes sobre la constitución de la sociedad y reformas estatutarias, actividad principal y secundarias.
A13: DENOMINACION: BIOTEC DEL PARAGUAY S.A.
A15: DOMICILIO LEGAL: MCAL. ESTIGARRIBIA Nº 1097 E/BRASIL
A17: ACTIVIDAD PRINCIPAL: IMPORTACION DE INSUMOS, MATERIALES, EQUIPOS Y REACTIVOS PARA LABORATORIOS.
A19: INSCRIPCION EN EL REGISTRO PUBLICO DE COMERCIO: Del estatuto o contrato social Nº 318, de fecha 01/08/1994. De las modificaciones: Nº 22 de fecha 30 de noviembre de 1996, Nº 478, de fecha 18 de setiembre del 2001, Nº 137 de fecha 25 de mayo del 2002, Nº 285, de fecha 20 de julio del 2005, Nº 2, de fecha 2 de enero del 2006, Nº 147 de fecha 11 de marzo del 2008, Nº 78 de fecha 22 de febrero del 2017, Nº 873 de fecha 28 de diciembre de 2017.
A21: INSCRIPCION EN LA COMISION NACIONAL DE VALORES: según ACTA N° 70/19 DE FECHA 10/09/2019 - RES CNV N°85E/19
A23: FECHA DE VENCIMIENTO DEL ESTATUTO O CONTRATO SOCIAL: Año 2.084
A25: COMPOSICION DEL CAPITAL: al 31 de diciembre de 2020.

Sheet Nota 2
A1: =Indice!C1 -> BIOTEC DEL PARAGUAY S.A. | M1: BG
A6: NOTA 2 - RESUMEN DE LAS PRINCIPALES POLÍTICAS CONTABLES
A7: Resumen de las principales políticas contables: a modo referencial, se incluyen las siguientes revelaciones de políticas contables en estados financieros de uso general que podrá ser tenida en consideración por las sociedades emisoras para la preparación de este capítulo de los estados financieros:
A10: a. Bases de contabilización (Según NIF Bases de preparación de los Estados Financieros)
A11: Los estados financieros se han preparado siguiendo los criterios de las Normas de Información Financiera (NIF) emitidas por el Consejo de Contadores Públicos del Paraguay sobre la base de costos históricos, excepto para el caso de activos y pasivos en moneda extranjera y las propiedades, planta y equipo según se explica en los puntos c ) y k), y no reconocen en forma integral los efectos de la inflación sobre la situación patrimonial y financiera de la sociedad, sobre los resultados de sus operaciones y los flujos de efectivo, en atención a que la corrección monetaria no constituye una práctica contable obligatoria en el Paraguay.
A12: De haberse aplicado una corrección monetaria integral de los estados financieros, podrían haber surgido diferencias en la presentación de la situación patrimonial y financiera de la sociedad, en los resultados de sus operaciones y en los flujos de efectivo al 31/12/2020 , y por los ejercicios cerrados el, 31 de diciembre de 2020 y 2019. Según el índice general de precios del consumo (IPC) publicado por el Banco Central del Paraguay, la inflación fue de 2,2% en el año 2020 y 2,8% en el año 2019.
A15: b. Uso de estimaciones contables
A16: La preparación de los presentes estados financieros requiere que la Gerencia de la sociedad realice estimaciones y evaluaciones que afectan el monto de los activos y pasivos registrados y contingentes, como así también los ingresos y egresos registrados en el ejercicio. Los resultados reales futuros pueden diferir de las estimaciones y evaluaciones realizadas a la fecha de preparación de los presentes estados financieros.
A18: c. Moneda extranjera
A19: Los activos y pasivos en moneda extranjera se valúan a los tipos de cambio vigentes a la fecha de cierre del ejercicio.
A20: Las diferencias de cambio originadas por fluctuaciones en los tipos de cambio producidos entre las fechas de concertación de las operaciones y su liquidación o valuación al cierre del ejercicio, son reconocidas en resultados.
C23: =IFERROR(IF(Indice!B6="","2XX2",YEAR(Indice!B6)),"2XX2") -> 2020 | I23: 2019
B24: Indicar moneda | C24: Simbología según ISO 4217 | D24: Valor TC | E24: Monto Moneda | F24: Miles de G. | H24: Indicar moneda | I24: Simbología según ISO 4217 | J24: Valor TC | K24: Monto Moneda | L24: Miles de G.
A25: Activos | B25: Dolares | C25: USD | D25: 6891.96 | E25: 1417038.144 | F25: 9766170209 | H25: Dolares | I25: USD | J25: 6442.33 | K25: 301196.77 | L25: 1940408987
B26: Euros | C26: € | D26: 8466.08 | E26: 16392.42849 | F26: 138779611 | H26: Euros | I26: € | J26: 7216.7 | K26: 624.4700486 | L26: 4506613
A29: Pasivos | B29: Dolares | C29: USD | D29: 6941.65 | E29: 1532844.724 | F29: 10640471577 | H29: Dolares | I29: USD | J29: 6463.95 | K29: 674441.92 | L29: 4359558849
B30: Euros | C30: € | D30: 8527.82 | E30: 158594.06 | F30: 1352461597 | H30: Euros | I30: € | J30: 7241.56 | K30: 115974.26 | L30: 839834562
A33: Posición neta | F33: =+F25-F31 -> 9766170209 | L33: =+L25-L31 -> 1940408987
A36: A la fecha de emisión de estos estados financieros, el tipo de cambio de la moneda extranjera DOLARES AMERICANOS no varió sustancialmente con respecto al vigente al 31 de Diciembre 2020 de tal forma que afecte significativamente los estados financieros y de resultados de la sociedad.
A38: d. Efectivo y equivalentes de efectivo
A39: Se considerarán dentro del concepto de efectivo los saldos en efectivo, disponibilidades en cuentas bancarias y toda inversión de muy alta liquidez, con vencimiento originalmente pactado no superior a tres meses corresponde al Fondo Mutuo Crecimiento Renta Fija en guaranies.
A42: e. Inversiones
A44: A la fecha de este informe la Sociedad cuenta con una inversion en Fondo Mutuo Crecimiento Renta Fija en guaranies.
A47: f. Previsión para cuentas de dudoso cobro/incobrables
A48: La cartera de crédito de la firma se compone con casi el 100% de saldos de instituciones públicas cuyo atraso se considera normal, debido a cuestiones presupuestarias que escapan del ámbito de la firma. Cabe destacar, que las deudas con el Sector Público no preescriben, por ende, la firma no constituye previsión alguna.
A53: g. Inventarios
A54: Las existencias se valúan al menor entre su costo de adquisición o de producción y su valor neto de realización (NIF 12, párrafo 5). Para determinar el consumo (baja de inventarios) se aplica la fórmula de costeo siguientes: PPP (Precio Promedio Ponderado).
A57: h. Activos disponibles para la venta
A58: Los activos disponibles para la venta representan bienes que fueron desafectados de la actividad productiva y se mantienen con el único objetivo de ser vendidos. Los mismos se valúan, sin amortizar, al menor entre el valor de mercado de los mismos y su costo (valor libro) al momento de su designación como disponibles para la venta. LA EMPRESA NO CUENTA CON BIENES DISPONIBLES PARA LA VENTA
A61: i. Previsiones para desvalorización y deterioro de inventarios
A62: La firma tiene como política realizar inventarios físicos periodicos a fin de identificar aquellos productos deteriorados y/o vencidos, que ya no están disponibles para la venta, afectando directamente a resultados bajo la cuenta de Pérdida Mercaderías Vencidas.
A64: j. Propiedades, planta y equipo
A65: Las propiedades, planta y equipo se exponen a su costo histórico ajustado por el coeficiente de revalúo emitido por la Autoridad Tributaria, menos la correspondiente depreciación acumulada. El incremento neto por la re-expresión se acredita a la respectiva reserva patrimonial, cuyo saldo puede ser utilizado únicamente para aumentar el capital.
A66: El costo de las mejoras que extienden la vida útil de los bienes o aumentan su capacidad productiva es imputado a las cuentas respectivas del activo. Los gastos de mantenimiento son cargados a resultados.
A67: A partir del ejercicio 2020, de acuerdo a la Ley N° 6380/19 Art. 11° ... El Poder Ejecutivo podrá establecer el revalúo obligatorio de los bienes del activo fijo, cuando la variación del índice de Precios al Consumo determinado por el Banco Central del Paraguay alcance al menos 20% (veinte por ciento), acumulado desde el ejercicio en el cual se haya dispuesto el último ajuste por revalúo. El reconocimiento del revalúo obligatorio establecido por el Poder Ejecutivo formará parte de una reserva patrimonial cuyo único destino podrá ser la capitalización; el revalúo se realizará una vez que IPC alcance 20%.
A73: k. Intangibles
A74: Los intangibles se exponen a su costo incurrido menos las correspondientes amortizaciones acumuladas al cierre del año.
A75: Las amortizaciones son calculadas por el método de línea recta, es un periodo no mayor a 5 años.
A77: l. Goodwill
A78: El saldo de esta cuenta representa la diferencia entre el valor pagado y el valor razonable de los activos netos adquiridos por la operación de compra de la subsidiaria.
A79: No aplicable
A81: m. Reconocimiento de ingresos y egresos
A82: Los ingresos y egresos son reconocidos en función de su devengamiento.
A84: n. Impuesto a la renta
A85: El impuesto a la renta que se carga a los resultados del año se basa en la utilidad contable antes de este concepto, ajustada por las partidas que la ley incluye o excluye para la determinación de la utilidad gravable a la que se aplica la tasa legal vigente del impuesto y por el reconocimiento del cargo o el ingreso originado por la aplicación del impuesto diferido, si los hubiere.
A87: o. Restricciones a la distribución de utilidades
A88: A la fecha de este informe, no existen restricciones a la distribución de utilidades.
A90: p. Derechos en Fideicomiso
A91: A la fecha de éste informe no existen operaciones de la especie constituidas por la empresa.
A93: q. Otros principios, prácticas y métodos
A94: A la fecha de éste informe no existen otros principios, prácticas o métodos seguidos por la empresa.

Sheet Nota 3
A1: =Indice!C1 -> BIOTEC DEL PARAGUAY S.A. | E1: BG
A2: Obs.: Revelar situación en el caso de contar con disponibilidad restringida
A7: NOTA 3 - EFECTIVO Y EQUIVALENTE DE EFECTIVO
A8: En miles de guaranies
A9: La composición de la cuenta es la siguiente:
A11: Concepto | C11: =IFERROR(IF(Indice!B6="","2XX2",YEAR(Indice!B6)),"2XX2") -> 2020 | D11: 2019
A13: Fondo Fijo | C13: 7109279 | D13: 6292773
A14: Recaudaciones a depositar | C14: 84862680 | D14: 20131321
A15: Bancos Locales - Moneda local Guaraníes | C15: 15647821468 | D15: 1956021361
A16: Bancos Locales - Moneda extranjera Dólares | C16: 150303034 | D16: 24572013
A17: Bancos Locales - Moneda extranjera otros | C17: 0 | D17: 0
A18: Bancos en el Extranjero - Moneda extranjera Dólares | C18: 0 | D18: 0
A19: (nuevas cuentas a incluir)
A20: Total | C20: =SUM($C$13:C19) -> 15890096461 | D20: =SUM($D$13:D19) -> 2007017468

Sheet Nota 4
A1: =Indice!C1 -> BIOTEC DEL PARAGUAY S.A. | D1: BG
A4: NOTA 4 - INVERSIONES TEMPORALES
A6: La composición de la cuenta es la siguiente:
B7: En miles de guaranies
A8: Concepto | B8: =IFERROR(IF(Indice!B6="","2XX2",YEAR(Indice!B6)),"2XX2") -> 2020 | C8: 2019
A9: Inversiones en Titulos del Sistema Financiero Local - Moneda Local Guaraníes | B9: 0 | C9: 0
A10: Inversiones en Titulos del Sistema Financiero Local - Moneda Extranjera Dólares | B10: 0 | C10: 0
A11: Inversiones en Titulos del Sistema Financiero Local - Moneda Extranjera otros | B11: 0 | C11: 0
A12: Inversiones en Mercado Bursatil Local - Moneda Local Guaraníes | B12: 0 | C12: 0
A13: Inversiones en Mercado Bursatil Local - Moneda Extranjera Dólares | B13: 0 | C13: 0
A14: Inversiones en Mercado Bursatil Extranjera - Moneda Extranjera Dólares | B14: 0 | C14: 0
A15: Inversiones en Mercado Bursatil Extranjera - Moneda Extranjera otros | B15: 0 | C15: 0
A16: Otras inversiones - Moneda Local Guaraníes | B16: 410072422 | C16: 0
A17: Otras inversiones - Moneda Extranjera Dólares | B17: 0 | C17: 0
A18: Total | B18: =SUM($B$9:B17) -> 410072422 | C18: 0

Sheet Nota 5
A1: =Indice!C1 -> BIOTEC DEL PARAGUAY S.A. | F1: BG
A2: Detallar cartera vencida y no vencida por clientes locales, extranjeros y partes relacionadas
A3: Se indicarán en este rubro todos los créditos a favor de la empresa provenientes de las ventas de Mercaderías y/o servicios (atendiendo a la actividades ordinarias de la empresa), separando las ventas locales en moneda nacional y/o extranjera de las ventas fuera del país en moneda nacional y/o extranjera
A5: NOTA 5 – CUENTAS POR COBRAR COMERCIALES
A6: Las cuentas a cobrar comerciales a corto plazo se integran como sigue:
C7: En miles de guaraníes
C8: =IFERROR(IF(Indice!B6="","2XX2",YEAR(Indice!B6)),"2XX2") -> 2020 | D8: 2019 | F8: Composición de la cartera de créditos por ventas | G8: 2020-12-31
A9: Deudores por ventas locales | B9: Moneda Local Guaraníes | C9: 28393497723 | D9: 35177032529 | F9: Situación | G9: Monto | H9: % Previsiones sobre Cartera
A10: Deudores por ventas locales | B10: Moneda Extranjera Dólares | C10: 0 | D10: 0 | F10: A Total Cartera no Vencida | G10: 5286770022 | H10: 0
A11: Deudores por ventas locales | B11: Moneda Extranjera otros | C11: 0 | D11: 0 | F11: B. Total Cartera Vencida | G11: 23125518085 | H11: 0
A12: Deudores por ventas en el exterior | B12: Moneda Local Guaraníes | C12: 0 | D12: 0 | F12: Composición Cartera Vencida
A13: Deudores por ventas en el exterior | B13: Moneda Extranjera Dólares | C13: 0 | D13: 0 | F13: Normal | G13: 3881190821
A14: Deudores por ventas en el exterior | B14: Moneda Extranjera otros | C14: 0 | D14: 0 | F14: En Gestión de Cobro | G14: 19244327264
A15: Deudores - Entidad relacionada | B15: Moneda Local Guaraníes | C15: 0 | D15: 0 | F15: En Gestión de Cobro Judicial | G15: 0
A16: Deudores - Entidad relacionada | B16: Moneda Extranjera Dólares | C16: 0 | D16: 0
A17: Deudores - Entidad relacionada | B17: Moneda Extranjera otros | C17: 0 | D17: 0 | F17: Total de la cartera de créditos (A+B) | G17: =G10+G11 -> 28412288107
A18: Cheques adelantados recibidos de clientes | B18: Moneda Local Guaraníes | C18: 0 | D18: 0
A19: Cheques adelantados recibidos de clientes | B19: Moneda Extranjera Dólares | C19: 0 | D19: 0 | F19: (-) Total Previsiones | G19: =-((G10*H10)+(SUMPRODUCT(G13:G15,H13:H15))) -> 0
A20: Cheques adelantados recibidos de clientes | B20: Moneda Extranjera otros | C20: 0 | D20: 0
A21: Cheques rechazados | B21: Moneda Local Guaraníes | C21: 0 | D21: 0 | F21: TOTAL NETO DE LA CARTERA DE CRÉDITOS | G21: =G17+G19 -> 28412288107
A22: Cheques rechazados | B22: Moneda Extranjera Dólares | C22: 0 | D22: 0
A23: Otros | B23: Moneda Local Guaraníes | C23: 0 | D23: 0 | F23: Observaciones
A24: Otros | B24: Moneda Extranjera Dólares | C24: 0 | D24: 0 | F24: Criterios de Clasificación utilizados - Cartera Vencida | G24: De | H24: A
A25: Otros | B25: Moneda Extranjera otros | C25: 0 | D25: 0 | F25: Normal | G25: 1 | H25: 30
A26: Menos Previsiones | C26: 0 | D26: 0 | F26: En Gestión de Cobro | G26: 31 | H26: 60
A27: Total | C27: =+SUM($C$9:C26) -> 28393497723 | D27: =+SUM($D$9:D26) -> 35177032529 | F27: En Gestión de Cobro Judicial | G27: 61 | H27: 10000
A30: Las cuentas a cobrar comerciales a largo plazo se integran como sigue:
C31: En miles de guaraníes
C32: =IFERROR(IF(Indice!B6="","2XX2",YEAR(Indice!B6)),"2XX2") -> 2020 | D32: 2019
A33: Deudores por ventas locales | B33: Moneda Local Guaraníes | C33: 0 | D33: 0
A34: Deudores por ventas locales | B34: Moneda Extranjera Dólares | C34: 0 | D34: 0
A35: Deudores por ventas locales | B35: Moneda Extranjera otros | C35: 0 | D35: 0
A36: Deudores por ventas en el exterior | B36: Moneda Local Guaraníes | C36: 0 | D36: 0
A37: Deudores por ventas en el exterior | B37: Moneda Extranjera Dólares | C37: 0 | D37: 0
A38: Deudores por ventas en el exterior | B38: Moneda Extranjera otros | C38: 0 | D38: 0
A39: Deudores - Entidad relacionada | B39: Moneda Local Guaraníes | C39: 0 | D39: 0
A40: Deudores - Entidad relacionada | B40: Moneda Extranjera Dólares | C40: 0 | D40: 0
A41: Deudores - Entidad relacionada | B41: Moneda Extranjera otros | C41: 0 | D41: 0
A42: Cheques adelantados recibidos de clientes | B42: Moneda Local Guaraníes | C42: 0 | D42: 0
A43: Cheques adelantados recibidos de clientes | B43: Moneda Extranjera Dólares | C43: 0 | D43: 0
A44: Cheques adelantados recibidos de clientes | B44: Moneda Extranjera otros | C44: 0 | D44: 0
A45: Deudores en gestión judicial | B45: Moneda Local Guaraníes | C45: 0 | D45: 0
A46: Deudores en gestión judicial | B46: Moneda Extranjera Dólares | C46: 0 | D46: 0
A47: Deudores en gestión judicial | B47: Moneda Extranjera otros | C47: 0 | D47: 0
A48: Cheques rechazados | B48: Moneda Local Guaraníes | C48: 0 | D48: 0
A49: Cheques rechazados | B49: Moneda Extranjera Dólares | C49: 0 | D49: 0
A50: Otros | B50: Moneda Local Guaraníes | C50: 0 | D50: 0
A51: Otros | B51: Moneda Extranjera Dólares | C51: 0 | D51: 0
A52: Otros | B52: Moneda Extranjera otros | C52: 0 | D52: 0
A53: Menos Previsiones | C53: 0 | D53: 0
A54: Total | C54: =+SUM($C$33:C53) -> 0 | D54: =+SUM($D$33:D53) -> 0

Sheet Nota 6
A1: =Indice!C1 -> BIOTEC DEL PARAGUAY S.A. | D1: BG
A4: NOTA 6 - OTROS CRÉDITOS
A5: En miles de guaranies
A6: El rubro de otros créditos se compone como sigue:
A8: Corrientes | E8: No corrientes
A10: Concepto | B10: =IFERROR(IF(Indice!B6="","2XX2",YEAR(Indice!B6)),"2XX2") -> 2020 | C10: 2019 | E10: Concepto | F10: =IFERROR(IF(Indice!B6="","2XX2",YEAR(Indice!B6)),"2XX2") -> 2020 | G10: 2019
A11: Anticipos a proveedores | B11: 79656516 | C11: 71693504 | E11: Garantía de Alquiler
A12: Anticipos a proveedores exterior | B12: 9873480165 | C12: 1920351447 | E12: I.V.A. Crédito fiscal
A13: Gastos pagados por adelantado | B13: 187528767 | C13: 181805406 | E13: Gastos de desarrollo | F13: 47298184 | G13: 14632728
A14: Anticipo Impuesto a la Renta | B14: 223611210 | C14: 0 | E14: INTERESES A DEVENGAR - BONOS LP | F14: 0 | G14: 0
A15: Retención Impuesto a la Renta | B15: 0 | C15: 0
A16: Retención Impuesto al Valor agregado | B16: 426030996 | C16: 0 | E16: Total | F16: =SUM(F11:F14) -> 47298184 | G16: =SUM(G11:G14) -> 14632728
A17: Otros Creditos | B17: 2482238534 | C17: 239770019
A18: Total | B18: =SUM($B$11:B17) -> 13272546188 | C18: =SUM($C$11:C17) -> 2413620376

Sheet Nota 7
A1: =Indice!C1 -> BIOTEC DEL PARAGUAY S.A. | D1: BG
A4: NOTA 7 – INVENTARIOS
A6: Los bienes de cambio están compuestos de la siguiente manera:
B7: En miles de guaranies
A8: Concepto | B8: =IFERROR(IF(Indice!B6="","2XX2",YEAR(Indice!B6)),"2XX2") -> 2020 | C8: 2019
A9: Mercaderías | B9: 30576888051 | C9: 14485087268
A10: Productos terminados | B10: 0 | C10: 0
A11: Productos en proceso | B11: 0 | C11: 0
A12: Mercaderías en Curso | B12: 144158956 | C12: 0
A13: Importacion en Curso | B13: 5006526768 | C13: 2381253929
A14: (-) Previsión para desvalorización y deterioro de inventario | B14: 0 | C14: 0
A15: Total | B15: =SUM(B9:B14) -> 35727573775 | C15: =SUM(C9:C14) -> 16866341197

Sheet Nota 8
A1: =Indice!C1 -> BIOTEC DEL PARAGUAY S.A. | D1: BG
A4: Nota 8 - INVERSIONES EN ASOCIADAS
A5: En miles de guaraníes
A6: Las inversiones en sociedades donde no se ejerce control se describen a continuación
A7: Periodo | B7: =IFERROR(IF(Indice!B6="","2XX2",YEAR(Indice!B6)),"2XX2") -> 2020 | C7: 2019
A8: Total Inversión | B8: =SUM($I$13:I18) -> 0 | C8: 0 | D8: <-- Indicar Monto
A10: a) Datos sobre la sociedad: | G10: a) Datos sobre la inversión:
D11: =IFERROR(IF(Indice!B6="","2XX2",YEAR(Indice!B6)),"2XX2") -> 2020
A12: Nombre de Sociedad | B12: RUC | C12: Cantidad de acciones | D12: Total Patrimonio neto | E12: Total del resultado | G12: Cantidad de acciones | H12: Participación sobre los votos (%) | I12: Total Inversión (miles de Gs) | J12: Participación sobre el Patrimonio Neto (%) | K12: Total valuación patrimonial proporcional | L12: Resultado sobre inversiones
A13: NO APLICABLE | G13: NO APLICABLE
K18: =J18*D18 -> 0 | L18: =J18*E18 -> 0

Sheet Nota 9
A1: =Indice!C1 -> BIOTEC DEL PARAGUAY S.A. | L1: BG
A4: NOTA 9 - PROPIEDADES, PLANTA Y EQUIPO - NETO
A5: En miles de guaraníes | J5: -1
B7: Costo histórico revaluado al inicio del año | C7: Adquisiciones | D7: Bajas | E7: Revalúo del año | F7: Valor de origen revaluado al final del año | G7: Depreciación acumulada revaluada al inicio del año | H7: Depreciación del año | I7: Bajas de depreciaciones acumuladas | J7: Revalúo depreciación acumulada del año | K7: Depreciación acumulada revaluada al final del año | L7: Valor neto contable
L8: =IFERROR(IF(Indice!B6="","2XX2",YEAR(Indice!B6)),"2XX2") -> 2020 | M8: 2019
A9: Inmuebles | B9: 1822036374 | C9: 1425026000 | D9: 0 | E9: 0 | F9: 3247062374 | G9: 0 | H9: 0 | I9: 0 | J9: 0 | K9: 0 | L9: 3247062374 | M9: 1822036374
A10: Rodados | B10: 824759829.2 | C10: 1002330142 | D10: 0 | E10: 0 | F10: 1827089971 | G10: 907375363 | H10: 395488636 | I10: 0 | J10: 0 | K10: 1302863999 | L10: 1431601335 | M10: 824759829.2
A11: Muebles y útiles | B11: 257800900.1 | C11: 42262634 | D11: 0 | E11: 0 | F11: 300063534.1 | G11: 334282821 | H11: 44501388 | I11: 0 | J11: 0 | K11: 378784209 | L11: 255562146.1 | M11: 257800900.1
A12: Equipos de Laboratorio | B12: 1.305071168e+10 | C12: 3842578949 | D12: 17982225 | E12: 0 | F12: 1.689329063e+10 | G12: 13105570931 | H12: 2668133850 | I12: 0 | J12: 0 | K12: 15773704781 | L12: 1.422515678e+10 | M12: 1.305071168e+10
A13: Equipos de comunicación | B13: 16358751.53 | C13: 0 | D13: 0 | E13: 0 | F13: 16358751.53 | G13: 8916762 | H13: 4530116 | I13: 0 | J13: 0 | K13: 13446878 | L13: 11828635.53 | M13: 16358751.53
A14: Equipo de Informatica | B14: 494920456.5 | C14: 156281822 | D14: 0 | E14: 0 | F14: 651202278.5 | G14: 1450378347 | H14: 277090960 | I14: 0 | J14: 0 | K14: 1727469307 | L14: 374111318.5 | M14: 494920456.5
A15: Mejora Predio Ajeno | B15: 126278181.8 | C15: 89363782 | D15: 0 | E15: 0 | F15: 215641963.8 | G15: 354923794 | H15: 33392007 | I15: 0 | J15: 0 | K15: 388315801 | L15: 182249956.8 | M15: 126278181.8
A16: Software | B16: 51114368.32 | C16: 0 | D16: 0 | E16: 0 | F16: 51114368.32 | G16: 477436316 | H16: 22343816 | I16: 0 | J16: 0 | K16: 499780132 | L16: 28770552.32 | M16: 51114368.32
A17: Edificios | B17: 457223387.3 | C17: 9209091 | D17: 0 | E17: 0 | F17: 466432478.3 | G17: 115946029 | H17: 0 | I17: 0 | J17: 0 | K17: 115946029 | L17: 466432478.3 | M17: 457223387.3
A18: Instalaciones | B18: 57851512.83 | C18: 29748909 | D18: 0 | E18: 0 | F18: 87600421.83 | G18: 323426917 | H18: 46698374 | I18: 0 | J18: 0 | K18: 370125291 | L18: 40902047.83 | M18: 57851512.83
A19: Obras en Curso | B19: 0 | C19: 0 | D19: 0 | E19: 0 | F19: 0 | G19: 0 | H19: 0 | I19: 0 | J19: 0 | K19: 0 | L19: 418253000 | M19: 0
A20: Totales | B20: =SUM(B9:B19) -> 1.715905544e+10 | C20: =SUM(C9:C19) -> 6596801329 | D20: 17982225 | E20: 0 | F20: 2.375585677e+10 | G20: =SUM(G9:G19) -> 17078257280 | H20: =SUM(H9:H19) -> 3492179147 | I20: 0 | J20: 0 | K20: =SUM(K9:K19) -> 20570436427 | L20: =SUM(L9:L19) -> 2.068193062e+10 | M20: =SUM(M9:M19) -> 1.715905544e+10

Sheet Nota 10
A1: =Indice!C1 -> BIOTEC DEL PARAGUAY S.A. | C1: BG
A4: NOTA 10 – ACTIVOS DISPONIBLES PARA LA VENTA
B5: En miles de guaranies
B6: =IFERROR(IF(Indice!B6="","2XX2",YEAR(Indice!B6)),"2XX2") -> 2020 | C6: 2019
A7: Propiedad, planta y equipo
A8: (Detallar bienes de uso) | B8: N/A | C8: N/A
A9: Total | B9: =B8 -> N/A | C9: =C8 -> N/A
A11: Activos intangibles
A12: (Detallar activos intangibles) | B12: N/A | C12: N/A
A13: Total | B13: =B12 -> N/A | C13: =C12 -> N/A
A15: Inversiones
A16: (Detallar Inversiones | B16: N/A | C16: N/A
A17: Total | B17: =B16 -> N/A | C17: =C16 -> N/A
A19: Total general | B19: 0 | C19: 0

Sheet Nota 11
A1: =Indice!C1 -> BIOTEC DEL PARAGUAY S.A. | F1: BG
A4: NOTA 11 – ACTIVOS INTANGIBLES
B5: En miles de guaranies
A6: Activos intangibles | B6: =IFERROR(IF(Indice!B6="","2XX2",YEAR(Indice!B6)),"2XX2") -> 2020 | C6: 2019
A7: Licencias Marcas y Patente | B7: 493951092 | C7: 464776044
A8: Menos amortización acumulada | B8: -381780326 | C8: -330175397
A10: Total general | B10: =SUM(B7:B9) -> 112170766 | C10: =SUM(C7:C9) -> 134600647

Sheet Nota 12
A1: =Indice!C1 -> BIOTEC DEL PARAGUAY S.A. | E1: BG
A5: NOTA 12 – GOODWILL
B6: En miles de guaranies
A7: Goodwill | B7: =IFERROR(IF(Indice!B6="","2XX2",YEAR(Indice!B6)),"2XX2") -> 2020 | C7: 2019
B8: N/A | C8: N/A
A9: Total general | B9: 0 | C9: 0

Sheet Nota 13
A1: =Indice!C1 -> BIOTEC DEL PARAGUAY S.A. | C1: BG
A4: NOTA 13 – CUENTAS POR PAGAR COMERCIALES
A5: En miles de guaranies
A6: Las cuentas por pagar comerciales se componen como sigue:
A8: Corrientes | B8: Simbología según ISO 4217 | C8: Indicación de Moneda | D8: =IFERROR(IF(Indice!B6="","2XX2",YEAR(Indice!B6)),"2XX2") -> 2020 | E8: 2019
A9: Proveedores - Entidades Relacionadas | C9: =IFERROR(VLOOKUP(B9,'Base de Monedas'!A:B,2,0),"") -> 
A10: Otros proveedores del exterior | C10: =IFERROR(VLOOKUP(B10,'Base de Monedas'!A:B,2,0),"") ->  | D10: 11310984853 | E10: 4602886660
A11: Proveedores locales | C11: =IFERROR(VLOOKUP(B11,'Base de Monedas'!A:B,2,0),"") ->  | D11: 1746442970 | E11: 824523747
A12: Acreesores Varios Milciades Ramos | C12: =IFERROR(VLOOKUP(B12,'Base de Monedas'!A:B,2,0),"") ->  | D12: 4979200 | E12: 0
A13: Tarjeta de Credito Familiar | C13: =IFERROR(VLOOKUP(B13,'Base de Monedas'!A:B,2,0),"") ->  | D13: 0 | E13: 2506660
A14: Total cuentas a pagar por comerciales | D14: =SUM($D$9:D13) -> 13062407023 | E14: =SUM(E9:E13) -> 5429917067
A18: No Corrientes | B18: Simbología según ISO 4217 | C18: Indicación de Moneda | D18: =IFERROR(YEAR(Indice!B6),"2XX2") -> 2020 | E18: 2019
A19: Proveedores - Entidades Relacionadas | C19: =IFERROR(VLOOKUP(B19,'Base de Monedas'!A:B,2,0),"") ->  | D19: =+#REF! ->  | E19: 0
A20: Otros proveedores del exterior | C20: =IFERROR(VLOOKUP(B20,'Base de Monedas'!A:B,2,0),"") ->  | D20: 0 | E20: 0
A21: Proveedores locales | C21: =IFERROR(VLOOKUP(B21,'Base de Monedas'!A:B,2,0),"") ->  | D21: 0 | E21: 0
A22: (nuevas cuentas a incluir) | C22: =IFERROR(VLOOKUP(B22,'Base de Monedas'!A:B,2,0),"") ->  | D22: =+#REF! ->  | E22: 0
A23: Total cuentas a pagar por comerciales | D23: =SUM($D$19:D21) ->  | E23: =SUM($E$19:E21) -> 0
A26: Indicación de monedas

Sheet Nota 14
A1: =Indice!C1 -> BIOTEC DEL PARAGUAY S.A. | E1: BG | L1: BG
A4: NOTA 14 – PRESTAMOS A CORTO Y LARGO PLAZO
A6: (a) Equivalentes al tipo de cambio referencial de la fecha de presentacion
A7: (b) Obligaciones garantizadas por valor de guaraníes………..
A9: Corrientes
D10: =IFERROR(IF(Indice!B6="","2XX2",YEAR(Indice!B6)),"2XX2") -> 2020 | J10: 2019
A11: Préstamos de Entidades Locales | B11: Vencimiento | C11: Símbolo de Moneda | D11: Moneda | E11: Importe (miles de Gs) | F11: Tipo de Garantía | H11: Vencimiento | I11: Símbolo de Moneda | J11: Moneda | K11: Importe (miles de Gs) | L11: Tipo de Garantía
A12: PRESTAMOS SUDAMERIS BANK | B12: 2021-02-18 | C12: PYG | D12: =IFERROR(VLOOKUP(C12,'Base de Monedas'!A:B,2,0),"") -> Guaraní | E12: 1000000000 | F12: Codeudora | I12: PYG | J12: =IFERROR(VLOOKUP(I12,'Base de Monedas'!A:B,2,0),"") -> Guaraní | K12: 0
A13: PRESTAMO BANCO BASA S.A. | B13: 2021-09-07 | C13: PYG | D13: =IFERROR(VLOOKUP(C13,'Base de Monedas'!A:B,2,0),"") -> Guaraní | E13: 3000000000 | F13: Solidaria | H13: 2020-09-07 | I13: PYG | J13: =IFERROR(VLOOKUP(I13,'Base de Monedas'!A:B,2,0),"") -> Guaraní | K13: 7000000000 | L13: Solidaria
A14: PRESTAMO FINANCIERA RIO S.A.E.C.A | B14: 2021-01-27 | C14: PYG | D14: =IFERROR(VLOOKUP(C14,'Base de Monedas'!A:B,2,0),"") -> Guaraní | E14: 1009272683 | F14: Codeudora | I14: PYG | J14: =IFERROR(VLOOKUP(I14,'Base de Monedas'!A:B,2,0),"") -> Guaraní
A15: PRESTAMO BANCOP S.A. | B15: 2021-07-25 | C15: PYG | D15: =IFERROR(VLOOKUP(C15,'Base de Monedas'!A:B,2,0),"") -> Guaraní | E15: 1000000000 | F15: Codeudora | H15: 2020-07-28 | I15: PYG | J15: =IFERROR(VLOOKUP(I15,'Base de Monedas'!A:B,2,0),"") -> Guaraní | K15: 1000000000 | L15: Codeudora
A16: PRESTAMO BCO. ATLAS S.A. | B16: 2021-07-15 | C16: PYG | D16: =IFERROR(VLOOKUP(C16,'Base de Monedas'!A:B,2,0),"") -> Guaraní | E16: 2001000000 | F16: Codeudora | I16: PYG | J16: =IFERROR(VLOOKUP(I16,'Base de Monedas'!A:B,2,0),"") -> Guaraní
A17: PRESTAMO BANCO FAMILIAR GS. | B17: 2021-03-05 | C17: PYG | D17: =IFERROR(VLOOKUP(C17,'Base de Monedas'!A:B,2,0),"") -> Guaraní | E17: 1000000000 | F17: Codeudora | I17: PYG | J17: =IFERROR(VLOOKUP(I17,'Base de Monedas'!A:B,2,0),"") -> Guaraní
A18: PRESTAMO FIC S.A. DE FINANZAS | B18: 2021-09-16 | C18: PYG | D18: =IFERROR(VLOOKUP(C18,'Base de Monedas'!A:B,2,0),"") -> Guaraní | E18: 1945331425 | F18: Codeudora | I18: PYG | J18: =IFERROR(VLOOKUP(I18,'Base de Monedas'!A:B,2,0),"") -> Guaraní
A19: PRESTAMO FINANCIERA PYO-JAPONESA S.A. | B19: 2021-09-02 | C19: PYG | D19: =IFERROR(VLOOKUP(C19,'Base de Monedas'!A:B,2,0),"") -> Guaraní | E19: 2000550001 | F19: Codeudora | I19: PYG | J19: =IFERROR(VLOOKUP(I19,'Base de Monedas'!A:B,2,0),"") -> Guaraní
A20: PRESTAMO BCO. CONTINENTAL GS. | B20: 2021-08-23 | C20: PYG | D20: =IFERROR(VLOOKUP(C20,'Base de Monedas'!A:B,2,0),"") -> Guaraní | E20: 500000000 | F20: Codeudora | H20: 2020-06-22 | I20: PYG | J20: =IFERROR(VLOOKUP(I20,'Base de Monedas'!A:B,2,0),"") -> Guaraní | K20: 1800000000 | L20: Codeudora
A21: PRESTAMO BCO. BBVA | B21: 2021-06-22 | C21: PYG | D21: =IFERROR(VLOOKUP(C21,'Base de Monedas'!A:B,2,0),"") -> Guaraní | E21: 3000000000 | F21: Solidaria | H21: 2020-03-27 | I21: PYG | J21: =IFERROR(VLOOKUP(I21,'Base de Monedas'!A:B,2,0),"") -> Guaraní | K21: 3000000000 | L21: Solidaria
A22: PRESTAMO BCO. VISION S.A.E.C.A. GS. | B22: 2021-01-01 | C22: PYG | D22: =IFERROR(VLOOKUP(C22,'Base de Monedas'!A:B,2,0),"") -> Guaraní | E22: 450128124 | F22: Codeudora | H22: 2020-10-01 | I22: PYG | J22: =IFERROR(VLOOKUP(I22,'Base de Monedas'!A:B,2,0),"") -> Guaraní | K22: 1999520483 | L22: Codeudora
A23: PRESTAMOS CAJA MUTUAL DE COOP. DEL PY | B23: 2021-07-09 | C23: PYG | D23: =IFERROR(VLOOKUP(C23,'Base de Monedas'!A:B,2,0),"") -> Guaraní | E23: 500000000 | F23: Codeudora | H23: 2020-05-09 | I23: PYG | J23: =IFERROR(VLOOKUP(I23,'Base de Monedas'!A:B,2,0),"") -> Guaraní | K23: 1000000000 | L23: Codeudora
A24: PRESTAMO DE TERCEROS | B24: 2021-04-24 | C24: PYG | D24: =IFERROR(VLOOKUP(C24,'Base de Monedas'!A:B,2,0),"") -> Guaraní | E24: 500000000 | F24: Solidaria | I24: PYG | J24: =IFERROR(VLOOKUP(I24,'Base de Monedas'!A:B,2,0),"") -> Guaraní
A25: PRESTAMO BANCO INTERFISA | B25: 2021-01-21 | C25: PYG | D25: =IFERROR(VLOOKUP(C25,'Base de Monedas'!A:B,2,0),"") -> Guaraní | E25: 1000000000 | J25: =IFERROR(VLOOKUP(I25,'Base de Monedas'!A:B,2,0),"") -> 
A26: PRESTAMO BANCO ITAÚ | B26: 2021-12-09 | C26: PYG | D26: =IFERROR(VLOOKUP(C26,'Base de Monedas'!A:B,2,0),"") -> Guaraní | E26: 5071282960 | F26: Codeudora | H26: 2020-06-12 | I26: PYG | J26: =IFERROR(VLOOKUP(I26,'Base de Monedas'!A:B,2,0),"") -> Guaraní | K26: 1330210117 | L26: Codeudora
A27: PRESTAMO GNB PARAGUAY SA GS | C27: PYG | D27: =IFERROR(VLOOKUP(C27,'Base de Monedas'!A:B,2,0),"") -> Guaraní | H27: 2020-08-01 | I27: PYG | J27: =IFERROR(VLOOKUP(I27,'Base de Monedas'!A:B,2,0),"") -> Guaraní | K27: 1000000000 | L27: Codeudora
A28: PRESTAMO FINANCIERA EL COMERCIO | B28: 2021-06-17 | C28: PYG | D28: =IFERROR(VLOOKUP(C28,'Base de Monedas'!A:B,2,0),"") -> Guaraní | E28: 505180392 | F28: Codeudora | I28: PYG | J28: =IFERROR(VLOOKUP(I28,'Base de Monedas'!A:B,2,0),"") -> Guaraní
A29: (incluir otras entidades)
A30: Deudas bursátiles | D30: =IFERROR(VLOOKUP(C30,'Base de Monedas'!A:B,2,0),"") ->  | J30: =IFERROR(VLOOKUP(I30,'Base de Monedas'!A:B,2,0),"") -> 
A31: (Incluir programas de forma individual) | D31: =IFERROR(VLOOKUP(C31,'Base de Monedas'!A:B,2,0),"") ->  | J31: =IFERROR(VLOOKUP(I31,'Base de Monedas'!A:B,2,0),"") -> 
A32: Préstamos de Entidades en el Exterior | D32: =IFERROR(VLOOKUP(C32,'Base de Monedas'!A:B,2,0),"") ->  | J32: =IFERROR(VLOOKUP(I32,'Base de Monedas'!A:B,2,0),"") -> 
A33: Nombre de la entidad financiera | D33: =IFERROR(VLOOKUP(C33,'Base de Monedas'!A:B,2,0),"") ->  | J33: =IFERROR(VLOOKUP(I33,'Base de Monedas'!A:B,2,0),"") -> 
A34: Nombre de la entidad financiera | D34: =IFERROR(VLOOKUP(C34,'Base de Monedas'!A:B,2,0),"") ->  | J34: =IFERROR(VLOOKUP(I34,'Base de Monedas'!A:B,2,0),"") -> 
A35: (incluir otras entidades) | D35: =IFERROR(VLOOKUP(C35,'Base de Monedas'!A:B,2,0),"") ->  | J35: =IFERROR(VLOOKUP(I35,'Base de Monedas'!A:B,2,0),"") -> 
A36: Deudas bursátiles | D36: =IFERROR(VLOOKUP(C36,'Base de Monedas'!A:B,2,0),"") ->  | J36: =IFERROR(VLOOKUP(I36,'Base de Monedas'!A:B,2,0),"") -> 
A37: (Incluir programas de forma individual) | D37: =IFERROR(VLOOKUP(C37,'Base de Monedas'!A:B,2,0),"") ->  | J37: =IFERROR(VLOOKUP(I37,'Base de Monedas'!A:B,2,0),"") -> 
A38: Intereses préstamos entidades financieras a pagar | D38: =IFERROR(VLOOKUP(C38,'Base de Monedas'!A:B,2,0),"") ->  | J38: =IFERROR(VLOOKUP(I38,'Base de Monedas'!A:B,2,0),"") -> 
A39: Intereses a pagar | C39: PYG | D39: Guaraní | E39: 1169887003 | F39: Codeudora | I39: PYG | J39: =IFERROR(VLOOKUP(I39,'Base de Monedas'!A:B,2,0),"") -> Guaraní | K39: 972524800 | L39: Codeudora
A40: (-) Intereses a Devengar | C40: PYG | D40: =IFERROR(VLOOKUP(C40,'Base de Monedas'!A:B,2,0),"") -> Guaraní | E40: -1179914913 | F40: Codeudora | I40: PYG | J40: =IFERROR(VLOOKUP(I40,'Base de Monedas'!A:B,2,0),"") -> Guaraní | K40: -989230586 | L40: Codeudora
A41: Intereses deudas bursátiles a pagar | D41: =IFERROR(VLOOKUP(C41,'Base de Monedas'!A:B,2,0),"") -> 
A42: Intereses a pagar | D42: =IFERROR(VLOOKUP(C42,'Base de Monedas'!A:B,2,0),"") -> 
A43: (-) Intereses a Devengar | D43: =IFERROR(VLOOKUP(C43,'Base de Monedas'!A:B,2,0),"") -> 
A44: Total | D44: =IFERROR(VLOOKUP(C44,'Base de Monedas'!A:B,2,0),"") ->  | E44: =SUM($E$12:E43) -> 24472717675 | K44: =SUM(K12:K43) -> 18113024814
A47: No Corrientes
D48: =IFERROR(YEAR(Indice!B6),"2XX2") -> 2020 | J48: 2019
A49: Préstamos de Entidades Locales | B49: Vencimiento | C49: Símbolo de Moneda | D49: Moneda | E49: Importe (miles de Gs) | F49: Tipo de garantía | H49: Vencimiento | I49: Símbolo de Moneda | J49: Moneda | K49: Importe (miles de Gs) | L49: Tipo de Garantía
A50: PRESTAMO BCO. CONTINENTAL GS. | B50: 2022-08-22 | C50: PYG | D50: =IFERROR(VLOOKUP(C50,'Base de Monedas'!A:B,2,0),"") -> Guaraní | E50: 500000000 | F50: Codeudora | J50: =IFERROR(VLOOKUP(I50,'Base de Monedas'!A:B,2,0),"") -> 
A51: Nombre de la entidad financiera | D51: =IFERROR(VLOOKUP(C51,'Base de Monedas'!A:B,2,0),"") ->  | J51: =IFERROR(VLOOKUP(I51,'Base de Monedas'!A:B,2,0),"") -> 
A52: (incluir otras entidades) | D52: =IFERROR(VLOOKUP(C52,'Base de Monedas'!A:B,2,0),"") ->  | J52: =IFERROR(VLOOKUP(I52,'Base de Monedas'!A:B,2,0),"") -> 
A53: Deudas bursátiles | D53: =IFERROR(VLOOKUP(C53,'Base de Monedas'!A:B,2,0),"") -> 
A54: SERIE 1 (uno) | B54: 26/09/2022 | C54: PYG | D54: =IFERROR(VLOOKUP(C54,'Base de Monedas'!A:B,2,0),"") -> Guaraní | E54: 3000000000 | H54: 26/09/2022 | I54: PYG | J54: Guaraní | K54: 3000000000
A55: SERIE 2 (dos) | B55: 2023-03-22 | C55: PYG | D55: =IFERROR(VLOOKUP(C55,'Base de Monedas'!A:B,2,0),"") -> Guaraní | E55: 3000000000 | H55: 2023-03-22 | I55: PYG | J55: Guaraní | K55: 3000000000
A56: SERIE 3 (tres) | B56: 2023-06-21 | C56: PYG | D56: =IFERROR(VLOOKUP(C56,'Base de Monedas'!A:B,2,0),"") -> Guaraní | E56: 3000000000 | H56: 2023-06-21 | I56: PYG | J56: Guaraní | K56: 3000000000
A57: SERIE 4 (cuatro) | B57: 2023-09-20 | C57: PYG | D57: =IFERROR(VLOOKUP(C57,'Base de Monedas'!A:B,2,0),"") -> Guaraní | E57: 3000000000 | H57: 2023-09-20 | I57: PYG | J57: Guaraní | K57: 3000000000
A58: SERIE 5 (cinco) | B58: 2024-03-20 | C58: PYG | D58: =IFERROR(VLOOKUP(C58,'Base de Monedas'!A:B,2,0),"") -> Guaraní | E58: 3000000000 | H58: 2024-03-20 | I58: PYG | J58: Guaraní | K58: 3000000000
A59: SERIE 6 (seis) | B59: 2023-04-03 | C59: PYG | D59: =IFERROR(VLOOKUP(C59,'Base de Monedas'!A:B,2,0),"") -> Guaraní | E59: 1000000000
A60: SERIE 7 (siete) | B60: 2023-10-02 | C60: PYG | D60: =IFERROR(VLOOKUP(C60,'Base de Monedas'!A:B,2,0),"") -> Guaraní | E60: 1000000000
A61: SERIE 8 (ocho) | B61: 2024-04-02 | C61: PYG | D61: =IFERROR(VLOOKUP(C61,'Base de Monedas'!A:B,2,0),"") -> Guaraní | E61: 1500000000
A62: SERIE 9 (nueve) | B62: 2024-10-01 | C62: PYG | D62: =IFERROR(VLOOKUP(C62,'Base de Monedas'!A:B,2,0),"") -> Guaraní | E62: 1500000000
A63: SERIE 10 (diez) | B63: 2025-03-31 | C63: PYG | D63: =IFERROR(VLOOKUP(C63,'Base de Monedas'!A:B,2,0),"") -> Guaraní | E63: 3000000000
A64: SERIE 11 (once) | B64: 2024-07-25 | C64: PYG | D64: =IFERROR(VLOOKUP(C64,'Base de Monedas'!A:B,2,0),"") -> Guaraní | E64: 4000000000
A65: SERIE 12 (doce) | B65: 2025-05-22 | C65: PYG | D65: =IFERROR(VLOOKUP(C65,'Base de Monedas'!A:B,2,0),"") -> Guaraní | E65: 3000000000
A66: Préstamos de Entidades en el Exterior | D66: =IFERROR(VLOOKUP(C66,'Base de Monedas'!A:B,2,0),"") ->  | J66: =IFERROR(VLOOKUP(I66,'Base de Monedas'!A:B,2,0),"") -> 
A67: Nombre de la entidad financiera | D67: =IFERROR(VLOOKUP(C67,'Base de Monedas'!A:B,2,0),"") ->  | J67: =IFERROR(VLOOKUP(I67,'Base de Monedas'!A:B,2,0),"") -> 
A68: Nombre de la entidad financiera | D68: =IFERROR(VLOOKUP(C68,'Base de Monedas'!A:B,2,0),"") ->  | J68: =IFERROR(VLOOKUP(I68,'Base de Monedas'!A:B,2,0),"") -> 
A69: (incluir otras entidades) | D69: =IFERROR(VLOOKUP(C69,'Base de Monedas'!A:B,2,0),"") ->  | J69: =IFERROR(VLOOKUP(I69,'Base de Monedas'!A:B,2,0),"") -> 
A70: Deudas bursátiles | D70: =IFERROR(VLOOKUP(C70,'Base de Monedas'!A:B,2,0),"") ->  | J70: =IFERROR(VLOOKUP(I70,'Base de Monedas'!A:B,2,0),"") -> 
A71: (Incluir programas de forma individual) | D71: =IFERROR(VLOOKUP(C71,'Base de Monedas'!A:B,2,0),"") ->  | J71: =IFERROR(VLOOKUP(I71,'Base de Monedas'!A:B,2,0),"") -> 
A72: Intereses préstamos entidades financieras a pagar | D72: =IFERROR(VLOOKUP(C72,'Base de Monedas'!A:B,2,0),"") ->  | J72: =IFERROR(VLOOKUP(I72,'Base de Monedas'!A:B,2,0),"") -> 
A73: Intereses a pagar | C73: PYG | D73: =IFERROR(VLOOKUP(C73,'Base de Monedas'!A:B,2,0),"") -> Guaraní | E73: 37397260 | F73: Codeudora | J73: =IFERROR(VLOOKUP(I73,'Base de Monedas'!A:B,2,0),"") -> 
A74: (-) Intereses a Devengar | C74: PYG | D74: =IFERROR(VLOOKUP(C74,'Base de Monedas'!A:B,2,0),"") -> Guaraní | E74: -37397260 | F74: Codeudora
A75: Intereses deudas bursátiles a pagar | D75: =IFERROR(VLOOKUP(C75,'Base de Monedas'!A:B,2,0),"") ->  | J75: =IFERROR(VLOOKUP(I75,'Base de Monedas'!A:B,2,0),"") -> 
A76: Intereses DE BONOS a pagar | C76: PYG | D76: =IFERROR(VLOOKUP(C76,'Base de Monedas'!A:B,2,0),"") -> Guaraní | E76: 12269103439 | I76: PYG | J76: Guarani | K76: 7030179461
A77: (-) Intereses a Devengar | C77: PYG | D77: =IFERROR(VLOOKUP(C77,'Base de Monedas'!A:B,2,0),"") -> Guaraní | E77: -12137012342 | I77: PYG | J77: Guarani | K77: -6986256172
A78: Total | D78: =IFERROR(VLOOKUP(C78,'Base de Monedas'!A:B,2,0),"") ->  | E78: =SUM($E$50:E77) -> 30632091097 | J78: =IFERROR(VLOOKUP(I78,'Base de Monedas'!A:B,2,0),"") ->  | K78: =SUM(K50:K77) -> 15043923289
J79: =IFERROR(VLOOKUP(I79,'Base de Monedas'!H:I,2,0),"") -> 

Sheet Nota 15
A1: =Indice!C1 -> BIOTEC DEL PARAGUAY S.A. | D1: BG
A5: NOTA 15 – PORCION CORRIENTE DE LA DEUDA A LARGO PLAZO
B7: En miles de guaranies
A8: Porción corriente de la deuda a largo plazo | B8: =IFERROR(IF(Indice!B6="","2XX2",YEAR(Indice!B6)),"2XX2") -> 2020 | C8: 2019
A9: Cuentas por pagar comerciales | B9: 0 | C9: 0
A10: Préstamos bancarios | B10: 0 | C10: 0
A11: Bonos bursátiles | B11: 0 | C11: 0
A12: Intereses bancarios a pagar | B12: 0 | C12: 0
A13: Bonos Emitidos a Pagar LP | B13: 0 | C13: 0
B14: 0 | C14: 0
A15: Total general | B15: =SUM($B$9:B14) -> 0 | C15: =SUM($B$9:C14) -> 0

Sheet Nota 16
A1: =Indice!C1 -> BIOTEC DEL PARAGUAY S.A. | F1: BG
A4: NOTA 16 – REMUNERACIONES Y CARGAS SOCIALES A PAGAR
B6: En miles de guaranies
A7: Remuneraciones y cargas sociales a pagar | B7: 2020 | C7: 2019
A8: Sueldo y otras remuneraciones a pagar | B8: 0 | C8: 0
A9: Aportes y retenciones a pagar | B9: 115928460 | C9: 83243306
A10: Remuneraciones al personal superior a pagar | B10: 0 | C10: 0
A11: (Indicar otras cuentas)
A12: Total | B12: =SUM($B$8:B11) -> 115928460 | C12: =SUM($C$8:C11) -> 83243306

Sheet Nota 17
A1: =Indice!C1 -> BIOTEC DEL PARAGUAY S.A. | G1: BG
A5: NOTA 17 – IMPUESTOS A PAGAR
B7: En miles de guaranies
A8: Impuestos a pagar | B8: =IFERROR(IF(Indice!B6="","2XX2",YEAR(Indice!B6)),"2XX2") -> 2020 | C8: 2019
A9: Impuesto a la renta a pagar | B9: 0 | C9: 278989034
A10: Otros impuestos a pagar | B10: 0 | C10: 149321409
A11: Retención de Renta / Iva p/ Flete | B11: 179164 | C11: 0
A12: Retención de Impuesto a Igresar | B12: 0 | C12: 0
A13: Total | B13: =SUM($B$9:B12) -> 179164 | C13: =SUM($C$9:C12) -> 428310443

Sheet Nota 18
A1: =Indice!C1 -> BIOTEC DEL PARAGUAY S.A. | D1: BG
A4: NOTA 18 - PROVISIONES
B6: En miles de guaranies
A7: Provisiones | B7: =IFERROR(IF(Indice!B6="","2XX2",YEAR(Indice!B6)),"2XX2") -> 2020 | C7: 2019
A9: Alquileres a Pagar | B9: 0 | C9: 0
A10: Dividendos a Pagar | B10: 13962129447 | C10: 0
A11: Honorarios Profesionales a Pagar | B11: 0 | C11: 0
A12: Otras Cuentas a Pagar | B12: 359000 | C12: 0
A13: Total | B13: =SUM($B$8:B12) -> 13962488447 | C13: =SUM(C8:C12) -> 0

Sheet Nota 19
A1: =Indice!C1 -> BIOTEC DEL PARAGUAY S.A. | D1: BG
A3: NOTA 19 – OTROS PASIVOS CORRIENTES y NO CORRIENTES
A4: En miles de guaranies
A6: Corrientes | B6: =IFERROR(IF(Indice!B6="","2XX2",YEAR(Indice!B6)),"2XX2") -> 2020 | C6: 2019 | E6: No Corrientes | F6: =IFERROR(IF(Indice!B6="","2XX2",YEAR(Indice!B6)),"2XX2") -> 2020 | G6: 2019
A7: Retencion de IVA a pagar | B7: 27085144 | C7: 15720042 | E7: Retencion de IVA a pagar | F7: 0 | G7: 0
A8: Retencion Impuesto a la renta a Pagar | B8: 0 | C8: 0 | E8: Retencion Impuesto a la renta a Pagar | F8: 0 | G8: 0
A9: Impuestos diferidos | B9: 0 | C9: 0 | E9: Impuestos diferidos | F9: 0 | G9: 0
A10: Otros ingresos diferidos (detallar cuenta) | B10: 0 | C10: 0 | E10: Otros ingresos diferidos | F10: 0 | G10: 0
A11: Otros Pasivos con Entidades relacionadas | B11: 0 | C11: 0 | E11: Otros Pasivos con Entidades relacionadas | F11: 0 | G11: 0
A12: Previsiones para contingencias/Indemnizaciones y despidos | B12: 0 | C12: 0 | E12: Previsiones para contingencias/Indemnizaciones y despidos | F12: 0 | G12: 0
A13: Prestamos de Socios GS | B13: 1400000000 | C13: 0 | E13: Prestamos de Socios GS | F13: 0 | G13: 0
A14: Prestamos de Socios M/E | B14: 681948321 | C14: 596506751 | E14: Prestamos de Socios M/E | F14: 0 | G14: 0
A15: Anticipos de Cliente | B15: 11319323 | C15: 25239540 | E15: Anticipos de Cliente | F15: 0 | G15: 0
A16: Intereses s/ Bonos a Pagar | B16: 0 | C16: 0 | E16: Intereses s/ Bonos a Pagar | F16: 0 | G16: 0
A17: (nuevas cuentas a incluir) | E17: (nuevas cuentas a incluir)
A18: Total | B18: =SUM(B7:B17) -> 2120352788 | C18: =SUM(C7:C17) -> 637466333 | E18: Total | F18: =SUM(F8:F17) -> 0 | G18: =SUM(G8:G17) -> 0

Sheet Nota 20
A1: =Indice!C1 -> BIOTEC DEL PARAGUAY S.A. | D1: BG
A4: NOTA 20 – CAPITAL INTEGRADO
A6: Fecha | B6: =IFERROR(IF(Indice!B6="","2XX2",YEAR(Indice!B6)),"2XX2") -> 2020 | C6: 2019
A7: Monto Capital Social | B7: 0 | C7: 0
A8: Monto Capital Integrado | B8: 12000000000 | C8: 10000000000
A9: Cantidad de Acciones | B9: 12000 | C9: 12000
A10: Valor Nominal de Acciones | B10: 1000000 | C10: 1000000
A11: Total | B11: =+B8 -> 12000000000 | C11: =+C8 -> 10000000000

Sheet Nota 21
A1: =Indice!C1 -> BIOTEC DEL PARAGUAY S.A. | F1: BG
A4: NOTA 21 – RESERVAS
B6: En miles de guaranies
B7: =IFERROR(IF(Indice!B6="","2XX2",YEAR(Indice!B6)),"2XX2") -> 2020 | C7: 2019
A8: a Reserva de revalúo | B8: 2195468553 | C8: 770442553
A9: a.1. Reserva de revalúo | B9: 770442553 | C9: 770442553
A10: a.2. Reserva de revalúo técnico | B10: 1425026000 | C10: 0
A19: b Reserva legal | B19: 1618994215 | C19: 993626716
A24: c Reservas estatutarias | B24: =+SUM($B28:B$29) -> 0 | C24: =+SUM($B28:C$29) -> 0
A28: d Reservas facultativas | B28: =+SUM($B$29:B32) -> 0 | C28: =SUM(C29:C30) -> 0
A29: d.1. (nuevas cuentas a incluir)

Sheet Nota 22
A1: =Indice!C1 -> BIOTEC DEL PARAGUAY S.A. | F1: BG
A4: NOTA 21 – DIFERENCIA TRANSITORIA POR CONVERSION
B6: En miles de guaranies
B7: =IFERROR(IF(Indice!B6="","2XX2",YEAR(Indice!B6)),"2XX2") -> 2020 | C7: 2019
A8: Diferencia transitoria por conversión | B8: N/A | C8: N/A
A9: Total | B9: 0 | C9: 0

Sheet Nota 23
A1: =Indice!C1 -> BIOTEC DEL PARAGUAY S.A. | F1: BG
A4: NOTA 23 – RESULTADOS ACUMULADOS
B6: En miles de guaranies
B7: =IFERROR(IF(Indice!B6="","2XX2",YEAR(Indice!B6)),"2XX2") -> 2020 | C7: 2019
A8: Resultado de ejercicios anteriores | B8: 0 | C8: 9764995885
A9: Resultado del ejercicio actual | B9: 14354558716 | C9: 12507349978
A10: Totales | B10: =SUM($B$8:B9) -> 14354558716 | C10: =SUM($C$8:C9) -> 22272345863

Sheet Nota 24
A1: =Indice!C1 -> BIOTEC DEL PARAGUAY S.A. | F1: BG
A4: NOTA 24 – INTERES MINORITARIO
B6: En miles de guaranies
B7: =IFERROR(IF(Indice!B6="","2XX2",YEAR(Indice!B6)),"2XX2") -> 2020 | C7: 2019
A8: Interes Minoritario | B8: N/A | C8: N/A
A9: Total | B9: 0 | C9: 0

Sheet Nota 25
A1: =Indice!C1 -> BIOTEC DEL PARAGUAY S.A. | E1: ER
A5: NOTA 25 – VENTAS
B8: En miles de guaranies
B9: =IFERROR(IF(Indice!B6="","2XX2",YEAR(Indice!B6)),"2XX2") -> 2020 | C9: 2019
A10: Ventas
A11: Ventas linea de negocio 1
A12: Ventas del Sector Publico | B12: 48802702994 | C12: 40679840522
A13: Venas del Sector Privado | B13: 31500914594 | C13: 13283738573
A14: Ingresos Extraordinarios | B14: 0 | C14: 0
A15: Exterior | B15: 0 | C15: 0
A16: Contado | B16: 0 | C16: 0
A17: Crédito | B17: 0 | C17: 0
A18: Ventas linea de negocio 2
A19: Local | B19: 0 | C19: 0
A20: Contado | B20: 0 | C20: 0
A21: Crédito | B21: 0 | C21: 0
A22: Exterior | B22: 0 | C22: 0
A23: Contado | B23: 0 | C23: 0
A24: Crédito | B24: 0 | C24: 0
A25: (nuevas lineas de negocio a incluir)
A26: Total | B26: =SUM($B$11:B24) -> 80303617588 | C26: =SUM($C$11:C24) -> 53963579095

Sheet Nota 26
A1: =Indice!C1 -> BIOTEC DEL PARAGUAY S.A. | E1: ER
A5: NOTA 26 - COSTO DE VENTAS
B8: Miles de guaraníes
A9: Costo de ventas | B9: =IFERROR(IF(Indice!B6="","2XX2",YEAR(Indice!B6)),"2XX2") -> 2020 | C9: 2019
A10: Linea de negocio 1
A11: Existencia inicial del inventario | B11: 16866341197 | C11: 14879190477
A12: + Compra de bienes y servicios | B12: 18861232578 | C12: 1987150720
A13: + Costo de producción | B13: 36552299652 | C13: 18697199956
A14: - Existencia final de inventario | B14: -35727573775 | C14: -16866341197
A15: Otros Ingresos Extraordinario | B15: 0 | C15: 0
A16: Linea de negocio 2
A17: Existencia inicial del inventario | B17: 0 | C17: 0
A18: + Compra de bienes y servicios | B18: 0 | C18: 0
A19: + Costo de producción | B19: 0 | C19: 0
A20: - Existencia final de inventario | B20: 0 | C20: 0
A21: (nuevas cuentas a incluir)
A22: Total costo de ventas | B22: =SUM($B$10:B21) -> 36552299652 | C22: =SUM($C$10:C21) -> 18697199956
C23: =+C22-C13 -> 0

Sheet Nota 27
A1: =Indice!C1 -> BIOTEC DEL PARAGUAY S.A. | G1: ER
A5: NOTA 27 - GASTOS
A7: El rubro está compuesto de la siguiente forma:
A9: Miles de guaraníes
C10: 2020 | F10: 2019
B11: Gastos de Ventas | C11: Gastos Administrativos | D11: Total | E11: Gastos de Ventas | F11: Gastos Administrativos | G11: Total
A12: Movilidad y viáticos | B12: 112455900 | C12: 12175323 | D12: 124631223 | E12: 203038452 | F12: 14674474 | G12: 217712926
A13: Gastos de alquiler | B13: 0 | C13: 426789776 | D13: 426789776 | E13: 0 | F13: 387703518 | G13: 387703518
A14: Computación y redes | B14: 0 | C14: 845909 | D14: 845909 | E14: 272727 | F14: 4480910 | G14: 4753637
A15: Gastos por servicios | B15: 358905275 | C15: 177653790 | D15: 536559065 | E15: 380828671 | F15: 205779952 | G15: 586608623
A16: Honorarios profesionales y asesoramiento | B16: 671066492 | C16: 548907857 | D16: 1219974349 | E16: 674320539 | F16: 587794361 | G16: 1262114900
A17: Investigación de mercado | B17: 0 | C17: 0 | D17: 0 | E17: 0 | F17: 0 | G17: 0
A18: Impuestos y tasas | B18: 3225213 | C18: 0 | D18: 3225213 | E18: 6542316 | F18: 298100000 | G18: 304642316
A19: Gastos de reparación y mantenimiento | B19: 109000540 | C19: 38319723 | D19: 147320263 | E19: 151650522 | F19: 62479272 | G19: 214129794
A20: Gastos del personal y capacitación | B20: 372036 | C20: 0 | D20: 372036 | E20: 390000 | F20: 450000 | G20: 840000
A21: Seguros pagados | B21: 213099251 | C21: 147049322 | D21: 360148573 | E21: 187606836 | F21: 137961841 | G21: 325568677
A22: Otros gastos de operación | B22: 3428264863 | C22: 357105275 | D22: 3785370138 | E22: 3041363342 | F22: 395982638 | G22: 3437345980
A23: Remuneraciones de administradores, directores, síndicos y consejo de vigilancia | B23: 0 | C23: 1875000000 | D23: 1875000000 | E23: 0 | F23: 758333315 | G23: 758333315
A24: Sueldos y Jornales | B24: 2845140159 | C24: 633577036 | D24: 3478717195 | E24: 2503488588 | F24: 851273780 | G24: 3354762368
A25: Indemnizacion | B25: 52733333 | C25: 10250000 | D25: 62983333 | E25: 3519468 | F25: 39900000 | G25: 43419468
A26: Preaviso | B26: 47250000 | C26: 17250000 | D26: 64500000 | E26: 43559202 | F26: 29850000 | G26: 73409202
A27: Aporte Patronal | B27: 664218250 | C27: 110732826 | D27: 774951076 | E27: 481394543 | F27: 153964447 | G27: 635358990
A28: Aporte Ley 2051/03 Art 41 -DNCP | B28: 201987475 | C28: 0 | D28: 201987475 | E28: 100815547 | F28: 0 | G28: 100815547
A29: Comisiones Pagadas | B29: 3318773248 | C29: 198431818 | D29: 3517205066 | E29: 1387992434 | F29: 0 | G29: 1387992434
A30: Aguinaldos | B30: 357521086 | C30: 65406013 | D30: 422927099 | E30: 239262673 | F30: 68178569 | G30: 307441242
A31: Contribuciones Sociales | B31: 26704059 | C31: 0 | D31: 26704059 | E31: 11509090 | F31: 0 | G31: 11509090
A32: Regalías y Honorarios por servicios técnicos | B32: 0 | C32: 0 | D32: 0 | E32: 0 | F32: 0 | G32: 0
A33: Gastos de Publicidad y Propaganda | B33: 34034551 | C33: 8370909 | D33: 42405460 | E33: 4270736 | F33: 4576145 | G33: 8846881
A34: Intereses, multas y recargos impositivos | B34: 0 | C34: 5199731 | D34: 5199731 | E34: 0 | F34: 258480 | G34: 258480
A35: Multas por Incumplimiento - Licitacion | B35: 303987128 | C35: 0 | D35: 303987128 | E35: 393025968 | F35: 0 | G35: 393025968
A36: Depreciación bienes de uso | B36: 0 | C36: 3492179147 | D36: 3492179147 | E36: 0 | F36: 2962446984 | G36: 2962446984
A37: Amortización activos intangibles | B37: 0 | C37: 51604929 | D37: 51604929 | E37: 0 | F37: 75181354 | G37: 75181354
A38: Combutible y Lubricantes | B38: 284924285 | C38: 15392713 | D38: 300316998 | E38: 308426024 | F38: 12668363 | G38: 321094387
A39: Patente e Impuestos | B39: 41741630 | C39: 0 | D39: 41741630 | E39: 31569874 | F39: 0 | G39: 31569874
A40: Previsiones | B40: 0 | C40: 0 | D40: 0 | E40: 0 | F40: 0 | G40: 0
A41: (nuevas cuentas a incluir) | D41: 0 | G41: 0
A42: Total | B42: =SUM(B12:B41) -> 13075404774 | C42: 8192242097 | D42: 21267646871 | E42: 10154847552 | F42: 7052038403 | G42: 17206885955

Sheet Nota 28
A1: =Indice!C1 -> BIOTEC DEL PARAGUAY S.A. | E1: ER
A4: Nota 28 - Otros Ingresos y gastos operativos
A6: Miles de guaraníes
A8: Otros ingresos | B8: =IFERROR(IF(Indice!B6="","2XX2",YEAR(Indice!B6)),"2XX2") -> 2020 | C8: 2019 | E8: Otros gastos | F8: =IFERROR(IF(Indice!B6="","2XX2",YEAR(Indice!B6)),"2XX2") -> 2020 | G8: 2019
A9: OTROS INGRESOS | B9: 38765259 | C9: 139624623 | E9: PERDIDA POR DIFERENCIA DE CAMBIO | F9: 1315886919 | G9: 1037808917
A10: SOBRANTE EN CAJA | B10: 640591 | C10: 111121 | E10: PERDIDA POR MERCADERIAS VENCIDAS | F10: 583949156 | G10: 808688460
A11: INTERESES COBRADOS | B11: 3598912 | C11: 0 | E11: DIFERENCIA O FALTANTE EN CAJA | F11: 99201 | G11: 138803
A12: UTILIDAD - DIFERENCIA DE CAMBIO | B12: 1031910567 | C12: 681825353 | E12: AJUSTE DE INVENTARIO | F12: 53222652 | G12: 370541
A13: INTERESES GANADOS | B13: 55421724 | C13: 393875 | E13: COSTO DE ACTIVO FIJO | F13: 0 | G13: 154506082
A14: DESCUENTOS OBTENIDOS | B14: 34927821 | C14: 24183214
A15: AJUSTE POR INVENTARIO | B15: 39038116 | C15: 229093
A16: VENTA DE ACTIVO FIJO | B16: 121888899 | C16: 144467079
A17: Total | B17: =SUM($B$9:B16) -> 1326191889 | C17: =SUM($C$9:C16) -> 990834358 | E17: Total | F17: =SUM(F9:F16) -> 1953157928 | G17: =SUM(G9:G16) -> 2001512803

Sheet Nota 29
A1: =Indice!C1 -> BIOTEC DEL PARAGUAY S.A. | E1: ER
A5: NOTA 29 - INGRESOS Y GASTOS FINANCIEROS NETOS
A6: Miles de guaraníes
A8: Ingresos Financieros netos | B8: =IFERROR(IF(Indice!B6="","2XX2",YEAR(Indice!B6)),"2XX2") -> 2020 | C8: 2019 | E8: Gastos Financieros netos | F8: =IFERROR(IF(Indice!B6="","2XX2",YEAR(Indice!B6)),"2XX2") -> 2020 | G8: 2019
A9: OTROS INGRESOS | B9: 0 | C9: 0 | E9: PERDIDA POR DIFERENCIA DE CAMBIO | F9: 0 | G9: 0
A10: SOBRANTE EN CAJA | B10: 0 | C10: 0 | E10: PERDIDA POR MERCADERIAS VENCIDAS | F10: 0 | G10: 0
A11: INTERESES COBRADOS | B11: 0 | C11: 0
A12: UTILIDAD - DIFERENCIA DE CAMBIO | B12: 0 | C12: 0 | E12: DIFERENCIA O FALTANTE EN CAJA | F12: 0 | G12: 0
A13: INTERESES GANADOS | B13: 0 | C13: 0 | E13: AJUSTE DE INVENTARIO | F13: 0 | G13: 0
A14: DESCUENTOS OBTENIDOS | B14: 0 | C14: 0 | E14: Intereses a bancos e instituciones financieras | F14: 5724375495 | G14: 3054940928
A15: AJUSTE POR INVENTARIO | B15: 0 | C15: 0
A16: VENTA DE ACTIVO FIJO | B16: 0 | C16: 0
A18: Total ingresos financieros | B18: =SUM(B9:B17) -> 0 | C18: =SUM(C9:C17) -> 0 | E18: Total gastos financieros | F18: =SUM(F9:F17) -> 5724375495 | G18: =SUM(G9:G17) -> 3054940928

Sheet Nota 30
A1: =Indice!C1 -> BIOTEC DEL PARAGUAY S.A. | E1: ER
A4: Nota 30 - Resultado de inversiones en asociadas
A5: Miles de guaraníes
A8: Resultado de inversiones en asociadas | B8: =IFERROR(IF(Indice!B6="","2XX2",YEAR(Indice!B6)),"2XX2") -> 2020 | C8: 2019
A9: (Detallar cuenta) | B9: N/A | C9: N/A
A10: Total

Sheet Nota 31
A1: =Indice!C1 -> BIOTEC DEL PARAGUAY S.A. | E1: ER
A4: Nota 31 - Resultado participación minoritaria
A5: Miles de guaraníes
A8: Resultado participación minoritaria | B8: =IFERROR(IF(Indice!B6="","2XX2",YEAR(Indice!B6)),"2XX2") -> 2020 | C8: 2019
A9: (Detallar cuenta) | B9: N/A | C9: N/A
A10: Total | B10: =SUM($B9:B9) -> 0 | C10: =SUM($C9:C9) -> 0

Sheet Nota 32
A1: =Indice!C1 -> BIOTEC DEL PARAGUAY S.A. | E1: ER
A4: Nota 32 - IMPUESTO A LA RENTA
A5: En miles de guaraníes
B7: =IFERROR(IF(Indice!B6="","2XX2",YEAR(Indice!B6)),"2XX2") -> 2020 | C7: 2019
A8: Impuesto a la renta | B8: 1777770815 | C8: 1485404962
A14: Total | B14: =SUM($B8:B13) -> 1777770815 | C14: =SUM($C8:C13) -> 1485404962

Sheet Nota 33
A1: =Indice!C1 -> BIOTEC DEL PARAGUAY S.A. | E1: ER
A4: Nota 33 - Resultado extraordinario neto de impuesto a la renta
A5: En miles de guaraníes
B7: =IFERROR(IF(Indice!B6="","2XX2",YEAR(Indice!B6)),"2XX2") -> 2020 | C7: 2019
A8: Conceptos
A9: (Detallar) | B9: N/A | C9: N/A
A10: Total | B10: =SUM($B8:B9) -> 0 | C10: =SUM($C8:C9) -> 0

Sheet Nota 34
A1: =Indice!C1 -> BIOTEC DEL PARAGUAY S.A. | E1: ER
A4: Nota 34 - Resultado sobre actividades discontinuadas neto de impuesto a la renta
A5: En miles de guaraníes
A7: Resultado sobre actividades discontinuadas neto de impuesto a la renta | B7: =IFERROR(IF(Indice!B6="","2XX2",YEAR(Indice!B6)),"2XX2") -> 2020 | C7: 2019
A9: (nueva cuenta a incluir) | B9: N/A | C9: N/A
A10: Subtotal | B10: N/A | C10: N/A
A11: - Impuesto a la renta | B11: N/A | C11: N/A
A12: Total | B12: =SUM($B8:B11) -> 0 | C12: =SUM($C8:C11) -> 0

Sheet Nota 35
A1: =Indice!C1 -> BIOTEC DEL PARAGUAY S.A. | E1: ER
A4: NOTA 35- UTILIDAD (PÉRDIDA) NETA DEL AÑO Y POR ACCION ORDINARIA
A5: La Sociedad calcula la utilidad neta por acción sobre la base de la utilidad del año y 12.000 acciones ordinarias de voto múltiple de valor nominal G 1.000.000.- cada una con derecho a 5 votos por acción.
B7: =IFERROR(IF(Indice!B6="","2XX2",YEAR(Indice!B6)),"2XX2") -> 2020 | C7: 2019
A8: Cantidad de Acciones Ordinarias en Circulación | B8: 12000 | C8: 10000
A9: Utilidad Neta | B9: 14354558716 | C9: 12508468849
A10: Utilidad Neta por Acción Ordinaria | B10: =IFERROR(B9/B8,0) -> 1196213.226 | C10: =IFERROR(C9/C8,0) -> 1250846.885

Sheet Nota 36
A1: =Indice!C1 -> BIOTEC DEL PARAGUAY S.A. | E1: Indice
A4: NOTA 36 - ACTIVOS GRAVADOS
A6: Los siguientes bienes de propiedad de la Sociedad han sido hipotecados y prendados en garantía de obligaciones financieras.
A8: =IFERROR("Al "&DAY(Indice!B6)&" de "&VLOOKUP(MONTH(Indice!B6),Indice!S:T,2,0)&" de "&YEAR(Indice!B6-365),"Al dia... de mes… de año 2XX1…") -> Al 31 de Diciembre de 2020
A9: Tipo de Activo | B9: Datos del activo gravado | C9: Tipo de garantía | D9: Importe (indicar moneda) | E9: A favor de
A10: NO APLICABLE
A15: =IFERROR("Al "&DAY(Indice!B6)&" de "&VLOOKUP(MONTH(Indice!B6),Indice!S:T,2,0)&" de "&YEAR(Indice!B6-1),"Al dia... de mes… de año 2XX2…") -> Al 31 de Diciembre de 2020
A16: Tipo de Activo | B16: Datos del activo gravado | C16: Tipo de garantía | D16: Importe (indicar moneda) | E16: A favor de
A17: NO APLICABLE

Sheet Nota 37
A1: =Indice!C1 -> BIOTEC DEL PARAGUAY S.A. | E1: Indice
A4: NOTA 37 - CONTINGENCIAS Y COMPROMISOS
A5: (Esta nota debería incluir un breve detalle de contratos con terceros, vigente a la fecha de cierre del ejercicio, cuyo incumplimiento o cláusula específica podrían generar obligaciones contingentes para el cliente).
A6: =IFERROR("Los principales contratos suscriptos por la Sociedad, vigentes al "&DAY(Indice!B6)&" de "&VLOOKUP(MONTH(Indice!B6),Indice!S:T,2,0)&" de "&YEAR(Indice!B6-1)&" son:","Los principales contratos suscriptos por la Sociedad, vigentes al … de … 20X2 son:") -> Los principales contratos suscriptos por la Sociedad, vigentes al 31 de Diciembre de 2020 son:
A7: a) N/A
A8: b) N/A
A11: =IFERROR("Al "&DAY(Indice!B6)&" de "&VLOOKUP(MONTH(Indice!B6),Indice!S:T,2,0)&" de "&YEAR(Indice!B6-1)&" no existen situaciones contingentes, ni reclamos que pudieran resultar en la generación de obligaciones para la Sociedad adicionales a las que se presentan en estos estados financieros.","Al … de …………... 20X2 no existen situaciones contingentes, ni reclamos que pudieran resultar en la generación de obligaciones para la Sociedad adicionales a las que se presentan en estos estados financieros.") -> Al 31 de Diciembre de 2020 no existen situaciones contingentes, ni reclamos que pudieran resultar en la generación de obligaciones para la Sociedad adicionales a las que se presentan en estos estados financieros.
A15: Obs.: Esta información debe estar ajustada a lo requerido por la Norma de Información Financiera N° 5 Contingencias y sucesos que ocurren después de la fecha del balance.

Sheet Nota 38
A1: =Indice!C1 -> BIOTEC DEL PARAGUAY S.A. | D1: Índice
A4: NOTA 38 - IMPUESTO DIFERIDO
A5: En miles de guaraníes
A6: Al … de …........... 20X2 la Sociedad constituyó una provisión para impuesto a la renta de Guaraníes …... (Al … de …...............20X1: Guaraníes …....) / (La Sociedad no ha constituido provisión para impuesto a la renta, debido a que a esa fecha la misma generó renta imponible que fue compensada con quebrantos impositivos acumulados a esa fecha).
A7: La Sociedad contabiliza el impuesto a la renta por el método de lo diferido, método del pasivo. El mencionado método establece la determinación de activos o pasivos impositivos diferidos netos basados en las diferencias temporales y temporarias, con cargo a la línea Impuesto a la renta del Estado de resultados.
A9: El siguiente cuadro detalla las diferencias temporales a la tasa del impuesto a los efectos de determinación del impuesto diferido:
B11: =IFERROR(IF(Indice!B6="","2XX2",YEAR(Indice!B6)),"2XX2") -> 2020 | C11: =+IFERROR(YEAR(Indice!B6-365),"2XX1") -> 2020
A12: Activos y pasivos impositivos diferidos: | B12: N/A | C12: N/A
A13: Caja y Bancos | B13: N/A | C13: N/A
A14: Inversiones | B14: N/A | C14: N/A
A15: Previsión para deudores incobrables | B15: N/A | C15: N/A
A16: Bienes de uso | B16: N/A | C16: N/A
A17: Activos intangibles | B17: N/A | C17: N/A
A18: Previsión del pasivo | B18: N/A | C18: N/A
A19: Deudas comerciales y bancarias | B19: N/A | C19: N/A
A20: Bienes de cambio | B20: N/A | C20: N/A
A21: Sub - total | B21: N/A | C21: N/A
A22: Previsión para impuestos diferidos netos | B22: N/A | C22: N/A
A23: Total activo/pasivo impositivo diferido neto antes de quebrantos | B23: N/A | C23: N/A
A24: Quebranto impositivo | B24: N/A | C24: N/A
A25: Total

Sheet Nota 39
A1: =Indice!C1 -> BIOTEC DEL PARAGUAY S.A. | E1: Indice
A5: NOTA 39 - HECHOS POSTERIORES
A6: (En caso en que entre la fecha del cierre del ejercicio y la fecha de emisión de los estados financieros existan hechos posteriores significativos deberá evaluarse el tipo de hecho posterior del que se trate y modificar esta nota según corresponda).
A9: Entre la fecha de cierre del ejercicio y la fecha de preparación de estos estados financieros, no han ocurrido hechos significativos de carácter financiero o de otra índole que afecten la situación patrimonial o financiera o los resultados de la Sociedad al 31 de diciembre 2020.

Sheet Nota 40
A1: =Indice!C1 -> BIOTEC DEL PARAGUAY S.A. | C1: Indice
A5: NOTA 40 - SALDOS Y TRANSACCIONES CON PARTES RELACIONADAS
A6: Miles de guaraníes
B10: =IFERROR(IF(Indice!B6="","2XX2",YEAR(Indice!B6)),"2XX2") -> 2020 | C10: 2019
A11: ACTIVO | B11: N/A | C11: N/A
A12: Inversiones temporales | B12: N/A | C12: N/A
A13: Cuentas a cobrar comerciales | B13: N/A | C13: N/A
A14: Otros créditos | B14: N/A | C14: N/A
A15: Total activo | B15: N/A | C15: N/A
A16: PASIVO | B16: N/A | C16: N/A
A17: Cuentas por pagar comerciales | B17: N/A | C17: N/A
A18: Préstamos a corto plazo | B18: N/A | C18: N/A
A19: Provisiones | B19: N/A | C19: N/A
A20: Préstamos a largo plazo | B20: N/A | C20: N/A
A21: Otros pasivos | B21: N/A | C21: N/A
A22: Total pasivo | B22: N/A | C22: N/A
B26: =IFERROR(IF(Indice!B6="","2XX2",YEAR(Indice!B6)),"2XX2") -> 2020 | C26: 2019
A27: Costo de ventas | B27: N/A | C27: N/A
A28: Compras a …. | B28: N/A | C28: N/A
A30: Gastos administrativos | B30: N/A | C30: N/A
A31: Honorarios por servicios | B31: N/A | C31: N/A
A32: Otros | B32: N/A | C32: N/A
A33: Gastos financieros | B33: N/A | C33: N/A
A34: Intereses pagados por préstamos | B34: N/A | C34: N/A

Sheet Base de Monedas
A1: PYG | B1: Guaraní | C1: Índice
A2: USD | B2: Dólar estadounidense
A3: EUR | B3: Euro
A4: AED | B4: Dírham de los Emiratos Árabes Unidos
A5: AFN | B5: Afgani
A6: ALL | B6: Lek
A7: AMD | B7: Dram armenio
A8: ANG | B8: Florín antillano neerlandés
A9: AOA | B9: Kwanza
A10: ARS | B10: Peso argentino
A11: AUD | B11: Dólar australiano
A12: AWG | B12: Florín arubeño
A13: AZN | B13: Manat azerbaiyano
A14: BAM | B14: Marco convertible
A15: BBD | B15: Dólar de Barbados
A16: BDT | B16: Taka
A17: BGN | B17: Lev búlgaro
A18: BHD | B18: Dinar bareiní
A19: BIF | B19: Franco de Burundi
A20: BMD | B20: Dólar bermudeño
A21: BND | B21: Dólar de Brunéi
A22: BOB | B22: Boliviano
A23: BOV | B23: MVDOL
A24: BRL | B24: Real brasileño
A25: BSD | B25: Dólar bahameño
A26: BTN | B26: Ngultrum
A27: BWP | B27: Pula
A28: BYN | B28: Rublo bielorruso
A29: BZD | B29: Dólar beliceño
A30: CAD | B30: Dólar canadiense
A31: CDF | B31: Franco congoleño
A32: CHE | B32: Euro WIR
A33: CHF | B33: Franco suizo
A34: CHW | B34: Franco WIR
A35: CLF | B35: Unidad de fomento
A36: CLP | B36: Peso chileno
A37: CNY | B37: Yuan chino
A38: COP | B38: Peso colombiano
A39: COU | B39: Unidad de valor real
A40: CRC | B40: Colón costarricense
A41: CUC | B41: Peso convertible
A42: CUP | B42: Peso cubano
A43: CVE | B43: Escudo caboverdiano
A44: CZK | B44: Corona checa
A45: DJF | B45: Franco yibutiano
A46: DKK | B46: Corona danesa
A47: DOP | B47: Peso dominicano
A48: DZD | B48: Dinar argelino
A49: EGP | B49: Libra egipcia
A50: ERN | B50: Nakfa
A51: ETB | B51: Birr etíope
A52: FJD | B52: Dólar fiyiano
A53: FKP | B53: Libra malvinense
A54: GBP | B54: Libra esterlina
A55: GEL | B55: Lari
A56: GHS | B56: Cedi ghanés
A57: GIP | B57: Libra de Gibraltar
A58: GMD | B58: Dalasi
A59: GNF | B59: Franco guineano
A60: GTQ | B60: Quetzal
A61: GYD | B61: Dólar guyanés
A62: HKD | B62: Dólar de Hong Kong
A63: HNL | B63: Lempira
A64: HRK | B64: Kuna
A65: HTG | B65: Gourde
A66: HUF | B66: Forinto
A67: IDR | B67: Rupia indonesia
A68: ILS | B68: Nuevo shéquel israelí
A69: INR | B69: Rupia india
A70: IQD | B70: Dinar iraquí
A71: IRR | B71: Rial iraní
A72: ISK | B72: Corona islandesa
A73: JMD | B73: Dólar jamaiquino
A74: JOD | B74: Dinar jordano
A75: JPY | B75: Yen
A76: KES | B76: Chelín keniano
A77: KGS | B77: Som
A78: KHR | B78: Riel
A79: KMF | B79: Franco comorense
A80: KPW | B80: Won norcoreano
A81: KRW | B81: Won
A82: KWD | B82: Dinar kuwaití
A83: KYD | B83: Dólar de las Islas Caimán
A84: KZT | B84: Tenge
A85: LAK | B85: Kip
A86: LBP | B86: Libra libanesa
A87: LKR | B87: Rupia de Sri Lanka
A88: LRD | B88: Dólar liberiano
A89: LSL | B89: Loti
A90: LYD | B90: Dinar libio
A91: MAD | B91: Dírham marroquí
A92: MDL | B92: Leu moldavo
A93: MGA | B93: Ariary malgache
A94: MKD | B94: Denar
A95: MMK | B95: Kyat
A96: MNT | B96: Tugrik
A97: MOP | B97: Pataca
A98: MRU | B98: Uguiya
A99: MUR | B99: Rupia de Mauricio
A100: MVR | B100: Rufiyaa
A101: MWK | B101: Kwacha
A102: MXN | B102: Peso mexicano
A103: MXV | B103: Unidad de Inversión (UDI) mexicana
A104: MYR | B104: Ringgit malayo
A105: MZN | B105: Metical mozambiqueño
A106: NAD | B106: Dólar namibio
A107: NGN | B107: Naira
A108: NIO | B108: Córdoba
A109: NOK | B109: Corona noruega
A110: NPR | B110: Rupia nepalí
A111: NZD | B111: Dólar neozelandés
A112: OMR | B112: Rial omaní
A113: PAB | B113: Balboa
A114: PEN | B114: Sol
A115: PGK | B115: Kina
A116: PHP | B116: Peso filipino
A117: PKR | B117: Rupia pakistaní
A118: PLN | B118: Złoty
A119: QAR | B119: Riyal qatarí
A120: RON | B120: Leu rumano
A121: RSD | B121: Dinar serbio
A122: RUB | B122: Rublo ruso
A123: RWF | B123: Franco ruandés
A124: SAR | B124: Riyal saudí
A125: SBD | B125: Dólar de las Islas Salomón
A126: SCR | B126: Rupia seychelense
A127: SDG | B127: Dinar sudanés
A128: SEK | B128: Corona sueca
A129: SGD | B129: Dólar de Singapur
A130: SHP | B130: Libra de Santa Elena
A131: SLL | B131: Leone
A132: SOS | B132: Chelín somalí
A133: SRD | B133: Dólar surinamés
A134: SSP | B134: Libra sursudanesa
A135: STN | B135: Dobra
A136: SVC | B136: Colon Salvadoreño
A137: SYP | B137: Libra siria
A138: SZL | B138: Lilangeni
A139: THB | B139: Baht
A140: TJS | B140: Somoni tayiko
A141: TMT | B141: Manat turcomano
A142: TND | B142: Dinar tunecino
A143: TOP | B143: Paʻanga
A144: TRY | B144: Lira turca
A145: TTD | B145: Dólar de Trinidad y Tobago
A146: TWD | B146: Nuevo dólar taiwanés
A147: TZS | B147: Chelín tanzano
A148: UAH | B148: Grivna
A149: UGX | B149: Chelín ugandés
A150: USN | B150: Dólar estadounidense (Siguiente día)
A151: UYI | B151: Peso en Unidades Indexadas (Uruguay)
A152: UYU | B152: Peso uruguayo
A153: UYW | B153: Unidad Previsional
A154: UZS | B154: Som uzbeko
A155: VES7​ | B155: Bolívar soberano
A156: VND | B156: Dong vietnamita
A157: VUV | B157: Vatu
A158: WST | B158: Tala
A159: XAF | B159: Franco CFA de África Central
A160: XAG | B160: Plata (una onza troy)
A161: XAU | B161: Oro (una onza troy)
A162: XBA | B162: Unidad compuesta europea (EURCO) (Unidad del mercados de bonos)
A163: XBB | B163: Unidad Monetaria europea (E.M.U.-6) (Unidad del mercado de bonos)
A164: XBC | B164: Unidad europea de cuenta 9 (E.U.A.-9) (Unidad del mercado de bonos)
A165: XBD | B165: Unidad europea de cuenta 17 (E.U.A.-17) (Unidad del mercado de bonos)
A166: XCD | B166: Dólar del Caribe Oriental
A167: XDR | B167: Derechos especiales de giro
A168: XOF | B168: Franco CFA de África Occidental
A169: XPD | B169: Paladio (una onza troy)
A170: XPF | B170: Franco CFP
A171: XPT | B171: Platino (una onza troy)
A172: XSU | B172: SUCRE
A173: XTS | B173: Reservado para pruebas
A174: XUA | B174: Unidad de cuenta BAD
A175: XXX | B175: Sin divisa
A176: YER | B176: Rial yemení
A177: ZAR | B177: Rand
A178: ZMW | B178: Kwacha zambiano
A179: ZWL | B179: Dólar zimbabuense
